{"text_format":"1","workbook":"xlsx","n_sheets":3,"sheets":["Dashboard","Basis","Futures"],"not_rendered":{"charts":0,"images":0,"macros":1,"external_links":0,"defined_names":67,"comments":0,"pivot_tables":0},"unopened":[],"bounds":{"document_bytes":16777216,"sheet_cells":100000,"rows_first":2000,"rows_last":500,"rows_between":2000,"halvings":0,"cell_chars":16384,"cell_head_chars":4096},"cells_cut":0,"cells_raw":0,"read":"whole","date_system":"1900"}

{"sheet":"Dashboard","index":0,"n_rows":17,"n_cols":8,"rows_kept":17,"cut":false,"hidden":false,"merged":[[4,8,18,15]]}
[]
[null,"\"Blue\" values are inputs to be entered and all other numbers are calculated values."]
[]
[]
[null,"  Cattle Characteristics ",null,null,null,null,"Option #1","Option #2"]
[null,null,null,null,null,null,"-","-"]
[null,"  Sex (Steer, Heifer)",null,null,null,null,"Steer","Steer"]
[null,"Weight (lbs/head)",null,null,null,null,"500-599","500-599"]
[null,"Muscling (1,2)",null,null,null,null,2,2]
[null,"Frame size (Medium and Large)",null,null,null,null,"Medium and Large","Medium and Large"]
[null,"Auction Location",null,null,null,null,"Lynchburg","Blackstone"]
[null,"  Month of Sale",null,null,null,null,"August","August"]
[null,"Expected feeder cattle futures price ($/cwt)",null,null,null,null,{"$f":"Basis!U3","v":230.875},{"$f":"Basis!V3","v":230.875}]
[null,"  Calculated Target Price ($/cwt)",null,null,null,null,{"$f":"Basis!U4","v":226.92726319499999},{"$f":"Basis!V4","v":219.37938819999999}]
[null,"  Total Price",null,null,null,null,{"$f":"Basis!U1","v":1248.0999475725},{"$f":"Basis!V1","v":1206.5866351}]
[null,"  Adjustment ($/cwt)",null,null,null,null,0,{"$f":"H14-G14","v":-7.5478749950000008}]
[null,"  Adjusted price (%)",null,null,null,null,0,{"$f":"(H14/G14)-1","v":-3.3261208409824494E-2}]

{"sheet":"Basis","index":1,"n_rows":1298,"n_cols":25,"rows_kept":1298,"cut":false,"hidden":false,"merged":[]}
["Drop down lists",null,null,null,null,null,null,null,"Sex (Steer, Heifer, Bull)","Weight, lbs/head","Muscling, (1,2, 1-2)","Frame size (Small, Medium and Large)","Auction Location","  Month of Sale","Basis","Base","Alternate",null,"Total price",null,{"$f":"U2*U4","v":1248.0999475725},{"$f":"V2*V4","v":1206.5866351}]
[null,null,null,null,null,null,null,null,"Steer","300-399",1,"Medium and Large","Rockingham","January",5.4489687760000001,{"$f":"IF(AND(U$7=$I2,U$9=$J2,U$10=$K2,U$12=$L2,U$15=$M2,U$16=$N2),$O2,0)","v":0},{"$f":"IF(AND(V$7=$I2,V$9=$J2,V$10=$K2,V$12=$L2,V$15=$M2,V$16=$N2),$O2,0)","v":0},null,"Expected cwt.",null,{"$f":"VALUE(VLOOKUP($U$9,$X$20:$Y$33,2,FALSE))","v":5.5},{"$f":"VALUE(VLOOKUP($V$9,$X$20:$Y$33,2,FALSE))","v":5.5}]
[null,null,null,null,null,null,null,null,"Steer","300-399",1,"Medium and Large","Rockingham","February",25.529826320000002,0,0,null,"Model predicted futures",null,{"$f":"VALUE(VLOOKUP($U$16,$U$20:$V$31,2,FALSE))","v":230.875},{"$f":"VALUE(VLOOKUP($V$16,$U$20:$V$31,2,FALSE))","v":230.875}]
[null,null,null,null,null,null,null,null,"Steer","300-399",1,"Medium and Large","Rockingham","March",11.62226274,0,0,null,"Model predicted price",null,{"$f":"SUM(P2:P1298)+U14","v":226.92726319499999},{"$f":"SUM(Q2:Q1298)+V14","v":219.37938819999999}]
["Sex","Weight","Number of head","Muscling","Frame size","Auction Location","  Month of Sale",null,"Steer","300-399",1,"Medium and Large","Rockingham","April",23.476655180000002,0,0]
["-","-",1,"-","Medium and Large","-","-",null,"Steer","300-399",1,"Medium and Large","Rockingham","May",32.09593615,0,0,null,"Cattle characteristics (shaded cells are inputs)",null,"Base","Alternate"]
["Steer","300-399",2,1,null,"Rockingham","January",null,"Steer","300-399",1,"Medium and Large","Rockingham","June",-19.36245761,0,0,null,"   Sex",null,{"$f":"Dashboard!G7","v":"Steer"},{"$f":"Dashboard!H7","v":"Steer"}]
["Heifer","400-499",3,2,null,"Blackstone","February",null,"Steer","300-399",1,"Medium and Large","Rockingham","July",null,0,0,null,"     (Bull, Heifer, Steer)"]
[null,"500-599",4,null,null,"Radiant","March",null,"Steer","300-399",1,"Medium and Large","Rockingham","August",-8.5621118050000007,0,0,null,"Weight, lbs/head",null,{"$f":"Dashboard!G8","v":"500-599"},{"$f":"Dashboard!H8","v":"500-599"}]
[null,"600-699",5,null,null,"Winchester","April",null,"Steer","300-399",1,"Medium and Large","Rockingham","September",null,0,0,null,"Muscling",null,{"$f":"Dashboard!G9","v":2},{"$f":"Dashboard!H9","v":2}]
[null,"700-799",6,null,null,"Lynchburg","May",null,"Steer","300-399",1,"Medium and Large","Rockingham","October",-15.16891332,0,0,null,"    (1,2,1-2)"]
[null,"500-550",7,null,null,"Abingdon (VQA)","June",null,"Steer","300-399",1,"Medium and Large","Rockingham","November",-12.14031746,0,0,null,"Frame size",null,{"$f":"Dashboard!G10","v":"Medium and Large"},{"$f":"Dashboard!H10","v":"Medium and Large"}]
[null,"551-599",8,null,null,null,"July",null,"Steer","300-399",1,"Medium and Large","Rockingham","December",15.432907650000001,0,0,null,"    (Small, Med and Large)"]
[null,"600-650",9,null,null,null,"August",null,"Steer","400-499",1,"Medium and Large","Rockingham","January",23.176190999999999,0,0,null,"Feeder cattle futures price, $/cwt",null,{"$f":"Dashboard!G13","v":230.875},{"$f":"Dashboard!H13","v":230.875}]
[null,"651-699",10,null,null,null,"September",null,"Steer","400-499",1,"Medium and Large","Rockingham","February",35.36315965,0,0,null,"Auction",null,{"$f":"Dashboard!G11","v":"Lynchburg"},{"$f":"Dashboard!H11","v":"Blackstone"}]
[null,"700-750",11,null,null,null,"October",null,"Steer","400-499",1,"Medium and Large","Rockingham","March",11.78892941,0,0,null,"Month of Sale",null,{"$f":"Dashboard!G12","v":"August"},{"$f":"Dashboard!H12","v":"August"}]
[null,"751-799",12,null,null,null,"November",null,"Steer","400-499",1,"Medium and Large","Rockingham","April",9.0055440690000008,0,0]
[null,"800-850",13,null,null,null,"December",null,"Steer","400-499",1,"Medium and Large","Rockingham","May",9.1237139250000006,0,0]
[null,"851-899",14,null,null,null,null,null,"Steer","400-499",1,"Medium and Large","Rockingham","June",7.262542388,0,0,null,null,null,"Sale Month","Nearby Contract",null,"Weight range","Average (per cwt)"]
[null,"1000+",15,null,null,null,null,null,"Steer","400-499",1,"Medium and Large","Rockingham","July",11.700413060000001,0,0,null,null,null,"January",{"$f":"SUBSTITUTE(VLOOKUP(\"MAR '24 (GFH24)\",Futures!A$2:B$11,2,FALSE),\"s\",\"\")","v":"266.75"},null,"300-399",3.5]
[null,null,16,null,null,null,null,null,"Steer","400-499",1,"Medium and Large","Rockingham","August",0.33413819500000003,0,0,null,null,null,"February",{"$f":"SUBSTITUTE(VLOOKUP(\"MAR '24 (GFH24)\",Futures!A$2:B$11,2,FALSE),\"s\",\"\")","v":"266.75"},null,"400-499",4.5]
[null,null,17,null,null,null,null,null,"Steer","400-499",1,"Medium and Large","Rockingham","September",14.42021825,0,0,null,null,null,"March",{"$f":"SUBSTITUTE(VLOOKUP(\"APR '24 (GFJ24)\",Futures!A2:B11,2,FALSE),\"s\",\"\")","v":"270.65"},null,"500-599",5.5]
[null,null,18,null,null,null,null,null,"Steer","400-499",1,"Medium and Large","Rockingham","October",-0.43464248500000002,0,0,null,null,null,"April",{"$f":"SUBSTITUTE(VLOOKUP(\"MAY '24 (GFK24)\",Futures!A$2:B$11,2,FALSE),\"s\",\"\")","v":"273.275"},null,"600-699",6.5]
[null,null,19,null,null,null,null,null,"Steer","400-499",1,"Medium and Large","Rockingham","November",-3.5907341270000002,0,0,null,null,null,"May",{"$f":"SUBSTITUTE(VLOOKUP(\"AUG '24 (GFQ24)\",Futures!A$2:B$11,2,FALSE),\"s\",\"\")","v":"280.625"},null,"700-799",7.5]
[null,null,20,null,null,null,null,null,"Steer","400-499",1,"Medium and Large","Rockingham","December",3.7614493150000001,0,0,null,null,null,"June",{"$f":"SUBSTITUTE(VLOOKUP(\"AUG '24 (GFQ24)\",Futures!A$2:B$11,2,FALSE),\"s\",\"\")","v":"280.625"},null,"500-550",5.25]
[null,null,21,null,null,null,null,null,"Steer","500-599",1,"Medium and Large","Rockingham","January",15.59367711,0,0,null,null,null,"July",{"$f":"SUBSTITUTE(VLOOKUP(\"AUG '24 (GFQ24)\",Futures!A$2:B$11,2,FALSE),\"s\",\"\")","v":"280.625"},null,"551-599",5.75]
[null,null,22,null,null,null,null,null,"Steer","500-599",1,"Medium and Large","Rockingham","February",24.07378465,0,0,null,null,null,"August",{"$f":"SUBSTITUTE(VLOOKUP(\"SEP '24 (GFU24)\",Futures!A$2:B$11,2,FALSE),\"s\",\"\")","v":"230.875"},null,"600-650",6.25]
[null,null,23,null,null,null,null,null,"Steer","500-599",1,"Medium and Large","Rockingham","March",12.15159607,{"$f":"IF(AND(U$7=$I28,U$9=$J28,U$10=$K28,U$12=$L28,U$15=$M28,U$16=$N28),$O28,0)","v":0},0,null,null,null,"September",{"$f":"SUBSTITUTE(VLOOKUP(\"OCT '24 (GFV24)\",Futures!A$2:B$11,2,FALSE),\"s\",\" \")","v":{"$error":"#N/A"}},null,"651-699",6.75]
[null,null,24,null,null,null,null,null,"Steer","500-599",1,"Medium and Large","Rockingham","April",23.426655180000001,0,0,null,null,null,"October",{"$f":"SUBSTITUTE(VLOOKUP(\"NOV '23 (GFX23)\",Futures!A$2:B$11,2,FALSE),\"s\",\" \")","v":"262.7 "},null,"700-750",7.25]
[null,null,25,null,null,null,null,null,"Steer","500-599",1,"Medium and Large","Rockingham","May",5.9851028140000002,0,0,null,null,null,"November",{"$f":"SUBSTITUTE(VLOOKUP(\"JAN '24 (GFF24)\",Futures!A$2:B$11,2,FALSE), \"s\",\" \")","v":"264.45 "},null,"751-799",7.75]
[null,null,26,null,null,null,null,null,"Steer","500-599",1,"Medium and Large","Rockingham","June",6.6262923880000004,0,0,null,null,null,"December",{"$f":"SUBSTITUTE(VLOOKUP(\"JAN '24 (GFF24)\",Futures!A$2:B$11,2,FALSE),\"s\",\" \")","v":"264.45 "},null,"800-850",8.25]
[null,null,27,null,null,null,null,null,"Steer","500-599",1,"Medium and Large","Rockingham","July",-3.4245869409999998,0,0,null,null,null,null,null,null,"851-899",8.75]
[null,null,28,null,null,null,null,null,"Steer","500-599",1,"Medium and Large","Rockingham","August",-4.4371118049999998,0,0,null,null,null,null,null,null,"1000+",10]
[null,null,29,null,null,null,null,null,"Steer","500-599",1,"Medium and Large","Rockingham","September",-0.96200396799999999,0,0]
[null,null,30,null,null,null,null,null,"Steer","500-599",1,"Medium and Large","Rockingham","October",-8.2466216509999999,0,0]
[null,null,31,null,null,null,null,null,"Steer","500-599",1,"Medium and Large","Rockingham","November",-8.2136507939999994,0,0]
[null,null,32,null,null,null,null,null,"Steer","500-599",1,"Medium and Large","Rockingham","December",-4.9469256850000001,0,0]
[null,null,33,null,null,null,null,null,"Steer","600-699",1,"Medium and Large","Rockingham","January",1.238510443,0,0]
[null,null,34,null,null,null,null,null,"Steer","600-699",1,"Medium and Large","Rockingham","February",14.675451320000001,0,0]
[null,null,35,null,null,null,null,null,"Steer","600-699",1,"Medium and Large","Rockingham","March",2.912262739,0,0]
[null,null,36,null,null,null,null,null,"Steer","600-699",1,"Medium and Large","Rockingham","April",-3.090289265,0,0]
[null,null,37,null,null,null,null,null,"Steer","600-699",1,"Medium and Large","Rockingham","May",-7.1948971860000004,0,0]
[null,null,38,null,null,null,null,null,"Steer","600-699",1,"Medium and Large","Rockingham","June",-9.9245409450000004,0,0]
[null,null,39,null,null,null,null,null,"Steer","600-699",1,"Medium and Large","Rockingham","July",-11.48725361,0,0]
[null,null,40,null,null,null,null,null,"Steer","600-699",1,"Medium and Large","Rockingham","August",-6.2501118050000004,0,0]
[null,null,41,null,null,null,null,null,"Steer","600-699",1,"Medium and Large","Rockingham","September",-8.1738789680000004,0,0]
[null,null,42,null,null,null,null,null,"Steer","600-699",1,"Medium and Large","Rockingham","October",-17.933124629999998,0,0]
[null,null,43,null,null,null,null,null,"Steer","600-699",1,"Medium and Large","Rockingham","November",-23.94131746,0,0]
[null,null,44,null,null,null,null,null,"Steer","600-699",1,"Medium and Large","Rockingham","December",-13.83413402,0,0]
[null,null,45,null,null,null,null,null,"Steer","700-799",1,"Medium and Large","Rockingham","January",-6.5726978909999998,0,0]
[null,null,46,null,null,null,null,null,"Steer","700-799",1,"Medium and Large","Rockingham","February",16.374270760000002,0,0]
[null,null,47,null,null,null,null,null,"Steer","700-799",1,"Medium and Large","Rockingham","March",-18.69773726,0,0]
[null,null,48,null,null,null,null,null,"Steer","700-799",1,"Medium and Large","Rockingham","April",-17.836122599999999,0,0]
[null,null,49,null,null,null,null,null,"Steer","700-799",1,"Medium and Large","Rockingham","May",-13.86573052,0,0]
[null,null,50,null,null,null,null,null,"Steer","700-799",1,"Medium and Large","Rockingham","June",-19.98745761,0,0]
[null,null,51,null,null,null,null,null,"Steer","700-799",1,"Medium and Large","Rockingham","July",-15.20333694,0,0]
[null,null,52,null,null,null,null,null,"Steer","700-799",1,"Medium and Large","Rockingham","August",-18.870653470000001,0,0]
[null,null,53,null,null,null,null,null,"Steer","700-799",1,"Medium and Large","Rockingham","September",-13.241170629999999,0,0]
[null,null,54,null,null,null,null,null,"Steer","700-799",1,"Medium and Large","Rockingham","October",-25.892038320000001,0,0]
[null,null,55,null,null,null,null,null,"Steer","700-799",1,"Medium and Large","Rockingham","November",-41.781984129999998,0,0]
[null,null,56,null,null,null,null,null,"Steer","700-799",1,"Medium and Large","Rockingham","December",-25.42625902,0,0]
[null,null,57,null,null,null,null,null,"Steer","300-399",2,"Medium and Large","Rockingham","January",11.44896878,0,0]
[null,null,58,null,null,null,null,null,"Steer","300-399",2,"Medium and Large","Rockingham","February",32.971492980000001,0,0]
[null,null,59,null,null,null,null,null,"Steer","300-399",2,"Medium and Large","Rockingham","March",null,0,0]
[null,null,60,null,null,null,null,null,"Steer","300-399",2,"Medium and Large","Rockingham","April",-8.8566781540000008,0,0]
[null,null,61,null,null,null,null,null,"Steer","300-399",2,"Medium and Large","Rockingham","May",7.5509361469999998,{"$f":"IF(AND(U$7=$I66,U$9=$J66,U$10=$K66,U$12=$L66,U$15=$M66,U$16=$N66),$O66,0)","v":0},{"$f":"IF(AND(V$7=$I66,V$9=$J66,V$10=$K66,V$12=$L66,V$15=$M66,V$16=$N66),$O66,0)","v":0}]
[null,null,62,null,null,null,null,null,"Steer","300-399",2,"Medium and Large","Rockingham","June",10.13754239,0,0]
[null,null,63,null,null,null,null,null,"Steer","300-399",2,"Medium and Large","Rockingham","July",39.783746389999997,0,0]
[null,null,64,null,null,null,null,null,"Steer","300-399",2,"Medium and Large","Rockingham","August",null,0,0]
[null,null,65,null,null,null,null,null,"Steer","300-399",2,"Medium and Large","Rockingham","September",-15.76200397,0,0]
[null,null,66,null,null,null,null,null,"Steer","300-399",2,"Medium and Large","Rockingham","October",4.6711681999999997E-2,0,0]
[null,null,67,null,null,null,null,null,"Steer","300-399",2,"Medium and Large","Rockingham","November",5.3096825399999998,0,0]
[null,null,68,null,null,null,null,null,"Steer","300-399",2,"Medium and Large","Rockingham","December",-5.7020923520000002,0,0]
[null,null,69,null,null,null,null,null,"Steer","400-499",2,"Medium and Large","Rockingham","January",21.115635439999998,0,0]
[null,null,70,null,null,null,null,null,"Steer","400-499",2,"Medium and Large","Rockingham","February",38.446492980000002,0,0]
[null,null,71,null,null,null,null,null,"Steer","400-499",2,"Medium and Large","Rockingham","March",22.955596069999999,0,0]
[null,null,72,null,null,null,null,null,"Steer","400-499",2,"Medium and Large","Rockingham","April",15.05998851,0,0]
[null,null,73,null,null,null,null,null,"Steer","400-499",2,"Medium and Large","Rockingham","May",3.8426028140000001,0,0]
[null,null,74,null,null,null,null,null,"Steer","400-499",2,"Medium and Large","Rockingham","June",14.19420905,0,0]
[null,null,75,null,null,null,null,null,"Steer","400-499",2,"Medium and Large","Rockingham","July",9.9087463919999994,0,0]
[null,null,76,null,null,null,null,null,"Steer","400-499",2,"Medium and Large","Rockingham","August",-8.5621118050000007,0,0]
[null,null,77,null,null,null,null,null,"Steer","400-499",2,"Medium and Large","Rockingham","September",-0.34533730200000001,0,0]
[null,null,78,null,null,null,null,null,"Steer","400-499",2,"Medium and Large","Rockingham","October",-11.62162165,0,0]
[null,null,79,null,null,null,null,null,"Steer","400-499",2,"Medium and Large","Rockingham","November",-2.5128174599999999,0,0]
[null,null,80,null,null,null,null,null,"Steer","400-499",2,"Medium and Large","Rockingham","December",7.2554076480000003,0,0]
[null,null,81,null,null,null,null,null,"Steer","500-599",2,"Medium and Large","Rockingham","January",9.1989687759999992,0,0]
[null,null,82,null,null,null,null,null,"Steer","500-599",2,"Medium and Large","Rockingham","February",34.482048540000001,0,0]
[null,null,83,null,null,null,null,null,"Steer","500-599",2,"Medium and Large","Rockingham","March",11.95559607,0,0]
[null,null,84,null,null,null,null,null,"Steer","500-599",2,"Medium and Large","Rockingham","April",14.64332185,0,0]
[null,null,85,null,null,null,null,null,"Steer","500-599",2,"Medium and Large","Rockingham","May",-5.5740638530000002,0,0]
[null,null,86,null,null,null,null,null,"Steer","500-599",2,"Medium and Large","Rockingham","June",-6.737457612,0,0]
[null,null,87,null,null,null,null,null,"Steer","500-599",2,"Medium and Large","Rockingham","July",-2.6279202740000001,0,0]
[null,null,88,null,null,null,null,null,"Steer","500-599",2,"Medium and Large","Rockingham","August",-12.1871118,0,0]
[null,null,89,null,null,null,null,null,"Steer","500-599",2,"Medium and Large","Rockingham","September",-5.4357539680000002,0,0]
[null,null,90,null,null,null,null,null,"Steer","500-599",2,"Medium and Large","Rockingham","October",-15.71120498,0,0]
[null,null,91,null,null,null,null,null,"Steer","500-599",2,"Medium and Large","Rockingham","November",-6.5057341270000002,0,0]
[null,null,92,null,null,null,null,null,"Steer","500-599",2,"Medium and Large","Rockingham","December",-0.57709235199999998,0,0]
[null,null,93,null,null,null,null,null,"Steer","600-699",2,"Medium and Large","Rockingham","January",4.1156354430000004,0,0]
[null,null,94,null,null,null,null,null,"Steer","600-699",2,"Medium and Large","Rockingham","February",3.7514929819999998,0,0]
[null,null,95,null,null,null,null,null,"Steer","600-699",2,"Medium and Large","Rockingham","March",-5.377737261,0,0]
[null,null,96,null,null,null,null,null,"Steer","600-699",2,"Medium and Large","Rockingham","April",-11.85667815,0,0]
[null,null,97,null,null,null,null,null,"Steer","600-699",2,"Medium and Large","Rockingham","May",-28.92406385,0,0]
[null,null,98,null,null,null,null,null,"Steer","600-699",2,"Medium and Large","Rockingham","June",-21.86245761,0,0]
[null,null,99,null,null,null,null,null,"Steer","600-699",2,"Medium and Large","Rockingham","July",-14.716253610000001,0,0]
[null,null,100,null,null,null,null,null,"Steer","600-699",2,"Medium and Large","Rockingham","August",-17.0621118,0,0]
[null,null,101,null,null,null,null,null,"Steer","600-699",2,"Medium and Large","Rockingham","September",-1.7620039679999999,0,0]
[null,null,102,null,null,null,null,null,"Steer","600-699",2,"Medium and Large","Rockingham","October",-16.520788320000001,0,0]
[null,null,103,null,null,null,null,null,"Steer","600-699",2,"Medium and Large","Rockingham","November",-21.55698413,0,0]
[null,null,104,null,null,null,null,null,"Steer","600-699",2,"Medium and Large","Rockingham","December",-24.16042569,0,0]
[null,null,105,null,null,null,null,null,"Steer","700-799",2,"Medium and Large","Rockingham","January",1.4489687760000001,0,0]
[null,null,106,null,null,null,null,null,"Steer","700-799",2,"Medium and Large","Rockingham","February",-7.0535070180000004,0,0]
[null,null,107,null,null,null,null,null,"Steer","700-799",2,"Medium and Large","Rockingham","March",-21.62773726,0,0]
[null,null,108,null,null,null,null,null,"Steer","700-799",2,"Medium and Large","Rockingham","April",null,0,0]
[null,null,109,null,null,null,null,null,"Steer","700-799",2,"Medium and Large","Rockingham","May",-22.324063850000002,0,0]
[null,null,110,null,null,null,null,null,"Steer","700-799",2,"Medium and Large","Rockingham","June",-33.61245761,0,0]
[null,null,111,null,null,null,null,null,"Steer","700-799",2,"Medium and Large","Rockingham","July",null,0,0]
[null,null,112,null,null,null,null,null,"Steer","700-799",2,"Medium and Large","Rockingham","August",-28.5621118,0,0]
[null,null,113,null,null,null,null,null,"Steer","700-799",2,"Medium and Large","Rockingham","September",-28.762003969999999,0,0]
[null,null,114,null,null,null,null,null,"Steer","700-799",2,"Medium and Large","Rockingham","October",-32.036621650000001,0,0]
[null,null,115,null,null,null,null,null,"Steer","700-799",2,"Medium and Large","Rockingham","November",-19.140317459999999,0,0]
[null,null,116,null,null,null,null,null,"Steer","700-799",2,"Medium and Large","Rockingham","December",-45.827092350000001,0,0]
[null,null,117,null,null,null,null,null,"Heifer","300-399",1,"Medium and Large","Rockingham","January",-16.301031219999999,0,0]
[null,null,118,null,null,null,null,null,"Heifer","300-399",1,"Medium and Large","Rockingham","February",-15.30350702,0,0]
[null,null,119,null,null,null,null,null,"Heifer","300-399",1,"Medium and Large","Rockingham","March",-0.37773726099999999,0,0]
[null,null,120,null,null,null,null,null,"Heifer","300-399",1,"Medium and Large","Rockingham","April",-12.85667815,0,0]
[null,null,121,null,null,null,null,null,"Heifer","300-399",1,"Medium and Large","Rockingham","May",-10.454063850000001,0,0]
[null,null,122,null,null,null,null,null,"Heifer","300-399",1,"Medium and Large","Rockingham","June",-37.61245761,0,0]
[null,null,123,null,null,null,null,null,"Heifer","300-399",1,"Medium and Large","Rockingham","July",-26.966253609999999,0,0]
[null,null,124,null,null,null,null,null,"Heifer","300-399",1,"Medium and Large","Rockingham","August",-23.5621118,0,0]
[null,null,125,null,null,null,null,null,"Heifer","300-399",1,"Medium and Large","Rockingham","September",-20.762003969999999,{"$f":"IF(AND(U$7=$I130,U$9=$J130,U$10=$K130,U$12=$L130,U$15=$M130,U$16=$N130),$O130,0)","v":0},{"$f":"IF(AND(V$7=$I130,V$9=$J130,V$10=$K130,V$12=$L130,V$15=$M130,V$16=$N130),$O130,0)","v":0}]
[null,null,126,null,null,null,null,null,"Heifer","300-399",1,"Medium and Large","Rockingham","October",-42.66995498,0,0]
[null,null,127,null,null,null,null,null,"Heifer","300-399",1,"Medium and Large","Rockingham","November",-42.848650790000001,0,0]
[null,null,128,null,null,null,null,null,"Heifer","300-399",1,"Medium and Large","Rockingham","December",-29.327092350000001,0,0]
[null,null,129,null,null,null,null,null,"Heifer","400-499",1,"Medium and Large","Rockingham","January",-19.21769789,0,0]
[null,null,130,null,null,null,null,null,"Heifer","400-499",1,"Medium and Large","Rockingham","February",-6.5535070180000004,0,0]
[null,null,131,null,null,null,null,null,"Heifer","400-499",1,"Medium and Large","Rockingham","March",-23.37773726,0,0]
[null,null,132,null,null,null,null,null,"Heifer","400-499",1,"Medium and Large","Rockingham","April",-13.495567039999999,0,0]
[null,null,133,null,null,null,null,null,"Heifer","400-499",1,"Medium and Large","Rockingham","May",-27.105174959999999,0,0]
[null,null,134,null,null,null,null,null,"Heifer","400-499",1,"Medium and Large","Rockingham","June",-17.195790949999999,0,0]
[null,null,135,null,null,null,null,null,"Heifer","400-499",1,"Medium and Large","Rockingham","July",-22.571253609999999,0,0]
[null,null,136,null,null,null,null,null,"Heifer","400-499",1,"Medium and Large","Rockingham","August",-29.3746118,0,0]
[null,null,137,null,null,null,null,null,"Heifer","400-499",1,"Medium and Large","Rockingham","September",-29.072003970000001,0,0]
[null,null,138,null,null,null,null,null,"Heifer","400-499",1,"Medium and Large","Rockingham","October",-36.501621649999997,0,0]
[null,null,139,null,null,null,null,null,"Heifer","400-499",1,"Medium and Large","Rockingham","November",-46.418234130000002,0,0]
[null,null,140,null,null,null,null,null,"Heifer","400-499",1,"Medium and Large","Rockingham","December",-36.130009020000003,0,0]
[null,null,141,null,null,null,null,null,"Heifer","500-599",1,"Medium and Large","Rockingham","January",-16.153114559999999,0,0]
[null,null,142,null,null,null,null,null,"Heifer","500-599",1,"Medium and Large","Rockingham","February",-14.700590350000001,0,0]
[null,null,143,null,null,null,null,null,"Heifer","500-599",1,"Medium and Large","Rockingham","March",-14.69773726,0,0]
[null,null,144,null,null,null,null,null,"Heifer","500-599",1,"Medium and Large","Rockingham","April",-15.69334482,0,0]
[null,null,145,null,null,null,null,null,"Heifer","500-599",1,"Medium and Large","Rockingham","May",-16.444063849999999,0,0]
[null,null,146,null,null,null,null,null,"Heifer","500-599",1,"Medium and Large","Rockingham","June",-24.97558261,0,0]
[null,null,147,null,null,null,null,null,"Heifer","500-599",1,"Medium and Large","Rockingham","July",-26.62875361,0,0]
[null,null,148,null,null,null,null,null,"Heifer","500-599",1,"Medium and Large","Rockingham","August",-29.7458618,0,0]
[null,null,149,null,null,null,null,null,"Heifer","500-599",1,"Medium and Large","Rockingham","September",-29.422420630000001,0,0]
[null,null,150,null,null,null,null,null,"Heifer","500-599",1,"Medium and Large","Rockingham","October",-29.74432998,0,0]
[null,null,151,null,null,null,null,null,"Heifer","500-599",1,"Medium and Large","Rockingham","November",-39.729484130000003,0,0]
[null,null,152,null,null,null,null,null,"Heifer","500-599",1,"Medium and Large","Rockingham","December",-25.12575902,0,0]
[null,null,153,null,null,null,null,null,"Heifer","600-699",1,"Medium and Large","Rockingham","January",-24.40519789,0,0]
[null,null,154,null,null,null,null,null,"Heifer","600-699",1,"Medium and Large","Rockingham","February",-18.014548680000001,0,0]
[null,null,155,null,null,null,null,null,"Heifer","600-699",1,"Medium and Large","Rockingham","March",-28.419403930000001,0,0]
[null,null,156,null,null,null,null,null,"Heifer","600-699",1,"Medium and Large","Rockingham","April",-27.590011489999998,0,0]
[null,null,157,null,null,null,null,null,"Heifer","600-699",1,"Medium and Large","Rockingham","May",-32.968230519999999,0,0]
[null,null,158,null,null,null,null,null,"Heifer","600-699",1,"Medium and Large","Rockingham","June",-28.79995761,0,0]
[null,null,159,null,null,null,null,null,"Heifer","600-699",1,"Medium and Large","Rockingham","July",-27.934586939999999,0,0]
[null,null,160,null,null,null,null,null,"Heifer","600-699",1,"Medium and Large","Rockingham","August",-26.00065347,0,0]
[null,null,161,null,null,null,null,null,"Heifer","600-699",1,"Medium and Large","Rockingham","September",-27.124503969999999,0,0]
[null,null,162,null,null,null,null,null,"Heifer","600-699",1,"Medium and Large","Rockingham","October",-40.828288319999999,0,0]
[null,null,163,null,null,null,null,null,"Heifer","600-699",1,"Medium and Large","Rockingham","November",-45.058234130000002,0,0]
[null,null,164,null,null,null,null,null,"Heifer","600-699",1,"Medium and Large","Rockingham","December",-39.233342350000001,0,0]
[null,null,165,null,null,null,null,null,"Heifer","700-799",1,"Medium and Large","Rockingham","January",-22.988531219999999,0,0]
[null,null,166,null,null,null,null,null,"Heifer","700-799",1,"Medium and Large","Rockingham","February",-16.991007020000001,0,0]
[null,null,167,null,null,null,null,null,"Heifer","700-799",1,"Medium and Large","Rockingham","March",-37.877737260000004,0,0]
[null,null,168,null,null,null,null,null,"Heifer","700-799",1,"Medium and Large","Rockingham","April",-37.940011490000003,0,0]
[null,null,169,null,null,null,null,null,"Heifer","700-799",1,"Medium and Large","Rockingham","May",-43.608786080000002,0,0]
[null,null,170,null,null,null,null,null,"Heifer","700-799",1,"Medium and Large","Rockingham","June",-41.40912428,0,0]
[null,null,171,null,null,null,null,null,"Heifer","700-799",1,"Medium and Large","Rockingham","July",-29.674586940000001,0,0]
[null,null,172,null,null,null,null,null,"Heifer","700-799",1,"Medium and Large","Rockingham","August",-29.576000690000001,0,0]
[null,null,173,null,null,null,null,null,"Heifer","700-799",1,"Medium and Large","Rockingham","September",-28.157837300000001,0,0]
[null,null,174,null,null,null,null,null,"Heifer","700-799",1,"Medium and Large","Rockingham","October",-50.224121650000001,0,0]
[null,null,175,null,null,null,null,null,"Heifer","700-799",1,"Medium and Large","Rockingham","November",-50.265317459999999,0,0]
[null,null,176,null,null,null,null,null,"Heifer","700-799",1,"Medium and Large","Rockingham","December",-35.087092349999999,0,0]
[null,null,177,null,null,null,null,null,"Heifer","300-399",2,"Medium and Large","Rockingham","January",-18.551031219999999,0,0]
[null,null,178,null,null,null,null,null,"Heifer","300-399",2,"Medium and Large","Rockingham","February",-19.053507020000001,0,0]
[null,null,179,null,null,null,null,null,"Heifer","300-399",2,"Medium and Large","Rockingham","March",-2.627737261,0,0]
[null,null,180,null,null,null,null,null,"Heifer","300-399",2,"Medium and Large","Rockingham","April",-12.85667815,0,0]
[null,null,181,null,null,null,null,null,"Heifer","300-399",2,"Medium and Large","Rockingham","May",1.175936147,0,0]
[null,null,182,null,null,null,null,null,"Heifer","300-399",2,"Medium and Large","Rockingham","June",-26.34245761,0,0]
[null,null,183,null,null,null,null,null,"Heifer","300-399",2,"Medium and Large","Rockingham","July",null,0,0]
[null,null,184,null,null,null,null,null,"Heifer","300-399",2,"Medium and Large","Rockingham","August",-44.562111799999997,0,0]
[null,null,185,null,null,null,null,null,"Heifer","300-399",2,"Medium and Large","Rockingham","September",-39.262003970000002,0,0]
[null,null,186,null,null,null,null,null,"Heifer","300-399",2,"Medium and Large","Rockingham","October",-36.630371650000001,0,0]
[null,null,187,null,null,null,null,null,"Heifer","300-399",2,"Medium and Large","Rockingham","November",-29.382817459999998,0,0]
[null,null,188,null,null,null,null,null,"Heifer","300-399",2,"Medium and Large","Rockingham","December",-36.577092350000001,0,0]
[null,null,189,null,null,null,null,null,"Heifer","400-499",2,"Medium and Large","Rockingham","January",-16.426031219999999,{"$f":"IF(AND(U$7=$I194,U$9=$J194,U$10=$K194,U$12=$L194,U$15=$M194,U$16=$N194),$O194,0)","v":0},{"$f":"IF(AND(V$7=$I194,V$9=$J194,V$10=$K194,V$12=$L194,V$15=$M194,V$16=$N194),$O194,0)","v":0}]
[null,null,190,null,null,null,null,null,"Heifer","400-499",2,"Medium and Large","Rockingham","February",-2.5535070179999999,0,0]
[null,null,191,null,null,null,null,null,"Heifer","400-499",2,"Medium and Large","Rockingham","March",-10.54440393,0,0]
[null,null,192,null,null,null,null,null,"Heifer","400-499",2,"Medium and Large","Rockingham","April",-16.19001149,0,0]
[null,null,193,null,null,null,null,null,"Heifer","400-499",2,"Medium and Large","Rockingham","May",-17.407397190000001,0,0]
[null,null,194,null,null,null,null,null,"Heifer","400-499",2,"Medium and Large","Rockingham","June",-22.445790949999999,0,0]
[null,null,195,null,null,null,null,null,"Heifer","400-499",2,"Medium and Large","Rockingham","July",-20.681253609999999,0,0]
[null,null,196,null,null,null,null,null,"Heifer","400-499",2,"Medium and Large","Rockingham","August",-23.149611799999999,0,0]
[null,null,197,null,null,null,null,null,"Heifer","400-499",2,"Medium and Large","Rockingham","September",-23.762003969999999,0,0]
[null,null,198,null,null,null,null,null,"Heifer","400-499",2,"Medium and Large","Rockingham","October",-36.474121650000001,0,0]
[null,null,199,null,null,null,null,null,"Heifer","400-499",2,"Medium and Large","Rockingham","November",-40.391150789999998,0,0]
[null,null,200,null,null,null,null,null,"Heifer","400-499",2,"Medium and Large","Rockingham","December",-34.877092349999998,0,0]
[null,null,201,null,null,null,null,null,"Heifer","500-599",2,"Medium and Large","Rockingham","January",-18.551031219999999,0,0]
[null,null,202,null,null,null,null,null,"Heifer","500-599",2,"Medium and Large","Rockingham","February",-12.29350702,0,0]
[null,null,203,null,null,null,null,null,"Heifer","500-599",2,"Medium and Large","Rockingham","March",-22.87773726,0,0]
[null,null,204,null,null,null,null,null,"Heifer","500-599",2,"Medium and Large","Rockingham","April",-7.9816781539999999,0,0]
[null,null,205,null,null,null,null,null,"Heifer","500-599",2,"Medium and Large","Rockingham","May",-20.087397190000001,0,0]
[null,null,206,null,null,null,null,null,"Heifer","500-599",2,"Medium and Large","Rockingham","June",-29.86245761,0,0]
[null,null,207,null,null,null,null,null,"Heifer","500-599",2,"Medium and Large","Rockingham","July",-27.341253609999999,0,0]
[null,null,208,null,null,null,null,null,"Heifer","500-599",2,"Medium and Large","Rockingham","August",-37.978778470000002,0,0]
[null,null,209,null,null,null,null,null,"Heifer","500-599",2,"Medium and Large","Rockingham","September",-36.012003970000002,0,0]
[null,null,210,null,null,null,null,null,"Heifer","500-599",2,"Medium and Large","Rockingham","October",-41.036621650000001,0,0]
[null,null,211,null,null,null,null,null,"Heifer","500-599",2,"Medium and Large","Rockingham","November",-46.167817460000002,0,0]
[null,null,212,null,null,null,null,null,"Heifer","500-599",2,"Medium and Large","Rockingham","December",-27.16042569,0,0]
[null,null,213,null,null,null,null,null,"Heifer","600-699",2,"Medium and Large","Rockingham","January",-21.926031219999999,0,0]
[null,null,214,null,null,null,null,null,"Heifer","600-699",2,"Medium and Large","Rockingham","February",-29.88684035,0,0]
[null,null,215,null,null,null,null,null,"Heifer","600-699",2,"Medium and Large","Rockingham","March",-29.487737259999999,0,0]
[null,null,216,null,null,null,null,null,"Heifer","600-699",2,"Medium and Large","Rockingham","April",-27.35667815,0,0]
[null,null,217,null,null,null,null,null,"Heifer","600-699",2,"Medium and Large","Rockingham","May",-36.574063850000002,0,0]
[null,null,218,null,null,null,null,null,"Heifer","600-699",2,"Medium and Large","Rockingham","June",-35.695790950000003,0,0]
[null,null,219,null,null,null,null,null,"Heifer","600-699",2,"Medium and Large","Rockingham","July",-13.716253610000001,0,0]
[null,null,220,null,null,null,null,null,"Heifer","600-699",2,"Medium and Large","Rockingham","August",-47.062111799999997,0,0]
[null,null,221,null,null,null,null,null,"Heifer","600-699",2,"Medium and Large","Rockingham","September",-48.762003970000002,0,0]
[null,null,222,null,null,null,null,null,"Heifer","600-699",2,"Medium and Large","Rockingham","October",-55.619954980000003,0,0]
[null,null,223,null,null,null,null,null,"Heifer","600-699",2,"Medium and Large","Rockingham","November",-38.140317459999999,0,0]
[null,null,224,null,null,null,null,null,"Heifer","600-699",2,"Medium and Large","Rockingham","December",-38.480425689999997,0,0]
[null,null,225,null,null,null,null,null,"Heifer","700-799",2,"Medium and Large","Rockingham","January",null,0,0]
[null,null,226,null,null,null,null,null,"Heifer","700-799",2,"Medium and Large","Rockingham","February",null,0,0]
[null,null,227,null,null,null,null,null,"Heifer","700-799",2,"Medium and Large","Rockingham","March",null,0,0]
[null,null,228,null,null,null,null,null,"Heifer","700-799",2,"Medium and Large","Rockingham","April",-22.85667815,0,0]
[null,null,229,null,null,null,null,null,"Heifer","700-799",2,"Medium and Large","Rockingham","May",null,0,0]
[null,null,230,null,null,null,null,null,"Heifer","700-799",2,"Medium and Large","Rockingham","June",null,0,0]
[null,null,231,null,null,null,null,null,"Heifer","700-799",2,"Medium and Large","Rockingham","July",-61.716253610000003,0,0]
[null,null,232,null,null,null,null,null,"Heifer","700-799",2,"Medium and Large","Rockingham","August",-37.562111799999997,0,0]
[null,null,233,null,null,null,null,null,"Heifer","700-799",2,"Medium and Large","Rockingham","September",null,0,0]
[null,null,234,null,null,null,null,null,"Heifer","700-799",2,"Medium and Large","Rockingham","October",-53.286621650000001,{"$f":"IF(AND(U$7=$I239,U$9=$J239,U$10=$K239,U$12=$L239,U$15=$M239,U$16=$N239),#REF!,0)","v":0},{"$f":"IF(AND(V$7=$I239,V$9=$J239,V$10=$K239,V$12=$L239,V$15=$M239,V$16=$N239),#REF!,0)","v":0}]
[null,null,235,null,null,null,null,null,"Heifer","700-799",2,"Medium and Large","Rockingham","November",-34.640317459999999,{"$f":"IF(AND(U$7=$I240,U$9=$J240,U$10=$K240,U$12=$L240,U$15=$M240,U$16=$N240),$O239,0)","v":0},{"$f":"IF(AND(V$7=$I240,V$9=$J240,V$10=$K240,V$12=$L240,V$15=$M240,V$16=$N240),$O239,0)","v":0}]
[null,null,236,null,null,null,null,null,"Heifer","700-799",2,"Medium and Large","Rockingham","December",-21.827092350000001,0,0]
[null,null,237,null,null,null,null,null,"Steer","300-399",1,"Medium and Large","Blackstone","January",1.282302109,0,0]
[null,null,238,null,null,null,null,null,"Steer","300-399",1,"Medium and Large","Blackstone","February",29.446492979999999,0,0]
[null,null,239,null,null,null,null,null,"Steer","300-399",1,"Medium and Large","Blackstone","March",7.3405960730000004,0,0]
[null,null,240,null,null,null,null,null,"Steer","300-399",1,"Medium and Large","Blackstone","April",9.1433218459999992,0,0]
[null,null,241,null,null,null,null,null,"Steer","300-399",1,"Medium and Large","Blackstone","May",24.675936149999998,0,0]
[null,null,242,null,null,null,null,null,"Steer","300-399",1,"Medium and Large","Blackstone","June",-6.862457612,0,0]
[null,null,243,null,null,null,null,null,"Steer","300-399",1,"Medium and Large","Blackstone","July",-2.8829202739999999,0,0]
[null,null,244,null,null,null,null,null,"Steer","300-399",1,"Medium and Large","Blackstone","August",13.4378882,0,0]
[null,null,245,null,null,null,null,null,"Steer","300-399",1,"Medium and Large","Blackstone","September",-14.95200397,0,0]
[null,null,246,null,null,null,null,null,"Steer","300-399",1,"Medium and Large","Blackstone","October",-9.0366216510000008,0,0]
[null,null,247,null,null,null,null,null,"Steer","300-399",1,"Medium and Large","Blackstone","November",5.3596825399999997,0,0]
[null,null,248,null,null,null,null,null,"Steer","300-399",1,"Medium and Large","Blackstone","December",-24.16042569,0,0]
[null,null,249,null,null,null,null,null,"Steer","400-499",1,"Medium and Large","Blackstone","January",12.96646878,0,0]
[null,null,250,null,null,null,null,null,"Steer","400-499",1,"Medium and Large","Blackstone","February",17.506492980000001,0,0]
[null,null,251,null,null,null,null,null,"Steer","400-499",1,"Medium and Large","Blackstone","March",19.689762739999999,0,0]
[null,null,252,null,null,null,null,null,"Steer","400-499",1,"Medium and Large","Blackstone","April",0.64332184599999997,0,0]
[null,null,253,null,null,null,null,null,"Steer","400-499",1,"Medium and Large","Blackstone","May",-3.4073971859999999,{"$f":"IF(AND(U$7=$I258,U$9=$J258,U$10=$K258,U$12=$L258,U$15=$M258,U$16=$N258),$O258,0)","v":0},{"$f":"IF(AND(V$7=$I258,V$9=$J258,V$10=$K258,V$12=$L258,V$15=$M258,V$16=$N258),$O258,0)","v":0}]
[null,null,254,null,null,null,null,null,"Steer","400-499",1,"Medium and Large","Blackstone","June",-0.55412427799999997,0,0]
[null,null,255,null,null,null,null,null,"Steer","400-499",1,"Medium and Large","Blackstone","July",-7.5085452740000003,0,0]
[null,null,256,null,null,null,null,null,"Steer","400-499",1,"Medium and Large","Blackstone","August",-4.9602368050000001,0,0]
[null,null,257,null,null,null,null,null,"Steer","400-499",1,"Medium and Large","Blackstone","September",-3.8932539679999998,0,0]
[null,null,258,null,null,null,null,null,"Steer","400-499",1,"Medium and Large","Blackstone","October",-10.66849665,0,0]
[null,null,259,null,null,null,null,null,"Steer","400-499",1,"Medium and Large","Blackstone","November",-7.8921924600000004,0,0]
[null,null,260,null,null,null,null,null,"Steer","400-499",1,"Medium and Large","Blackstone","December",-4.6679256850000002,0,0]
[null,null,261,null,null,null,null,null,"Steer","500-599",1,"Medium and Large","Blackstone","January",6.0803229429999996,0,0]
[null,null,262,null,null,null,null,null,"Steer","500-599",1,"Medium and Large","Blackstone","February",12.789617979999999,0,0]
[null,null,263,null,null,null,null,null,"Steer","500-599",1,"Medium and Large","Blackstone","March",19.943512739999999,0,0]
[null,null,264,null,null,null,null,null,"Steer","500-599",1,"Medium and Large","Blackstone","April",3.8519885129999998,0,0]
[null,null,265,null,null,null,null,null,"Steer","500-599",1,"Medium and Large","Blackstone","May",-4.7593416309999999,0,0]
[null,null,266,null,null,null,null,null,"Steer","500-599",1,"Medium and Large","Blackstone","June",-2.8294576120000001,0,0]
[null,null,267,null,null,null,null,null,"Steer","500-599",1,"Medium and Large","Blackstone","July",-7.7712536080000003,0,0]
[null,null,268,null,null,null,null,null,"Steer","500-599",1,"Medium and Large","Blackstone","August",-8.3321118050000003,0,0]
[null,null,269,null,null,null,null,null,"Steer","500-599",1,"Medium and Large","Blackstone","September",-9.3316914680000007,0,0]
[null,null,270,null,null,null,null,null,"Steer","500-599",1,"Medium and Large","Blackstone","October",-18.07855915,0,0]
[null,null,271,null,null,null,null,null,"Steer","500-599",1,"Medium and Large","Blackstone","November",-20.11135913,0,0]
[null,null,272,null,null,null,null,null,"Steer","500-599",1,"Medium and Large","Blackstone","December",-14.37459235,0,0]
[null,null,273,null,null,null,null,null,"Steer","600-699",1,"Medium and Large","Blackstone","January",3.285010443,0,0]
[null,null,274,null,null,null,null,null,"Steer","600-699",1,"Medium and Large","Blackstone","February",0.35920131599999999,0,0]
[null,null,275,null,null,null,null,null,"Steer","600-699",1,"Medium and Large","Blackstone","March",9.4796794060000007,0,0]
[null,null,276,null,null,null,null,null,"Steer","600-699",1,"Medium and Large","Blackstone","April",-3.9979281539999998,0,0]
[null,null,277,null,null,null,null,null,"Steer","600-699",1,"Medium and Large","Blackstone","May",-10.45989719,0,0]
[null,null,278,null,null,null,null,null,"Steer","600-699",1,"Medium and Large","Blackstone","June",-10.06424928,0,0]
[null,null,279,null,null,null,null,null,"Steer","600-699",1,"Medium and Large","Blackstone","July",-8.9228161079999992,0,0]
[null,null,280,null,null,null,null,null,"Steer","600-699",1,"Medium and Large","Blackstone","August",-12.665028469999999,0,0]
[null,null,281,null,null,null,null,null,"Steer","600-699",1,"Medium and Large","Blackstone","September",-16.053837300000001,0,0]
[null,null,282,null,null,null,null,null,"Steer","600-699",1,"Medium and Large","Blackstone","October",-23.104496650000002,0,0]
[null,null,283,null,null,null,null,null,"Steer","600-699",1,"Medium and Large","Blackstone","November",-22.17448413,0,0]
[null,null,284,null,null,null,null,null,"Steer","600-699",1,"Medium and Large","Blackstone","December",-19.502717350000001,0,0]
[null,null,285,null,null,null,null,null,"Steer","700-799",1,"Medium and Large","Blackstone","January",-6.4185312239999996,0,0]
[null,null,286,null,null,null,null,null,"Steer","700-799",1,"Medium and Large","Blackstone","February",-3.988507018,0,0]
[null,null,287,null,null,null,null,null,"Steer","700-799",1,"Medium and Large","Blackstone","March",-14.548570590000001,0,0]
[null,null,288,null,null,null,null,null,"Steer","700-799",1,"Medium and Large","Blackstone","April",-12.619455930000001,0,0]
[null,null,289,null,null,null,null,null,"Steer","700-799",1,"Medium and Large","Blackstone","May",-17.575174959999998,0,0]
[null,null,290,null,null,null,null,null,"Steer","700-799",1,"Medium and Large","Blackstone","June",-20.38297845,0,0]
[null,null,291,null,null,null,null,null,"Steer","700-799",1,"Medium and Large","Blackstone","July",-16.837503609999999,0,0]
[null,null,292,null,null,null,null,null,"Steer","700-799",1,"Medium and Large","Blackstone","August",-16.875861799999999,0,0]
[null,null,293,null,null,null,null,null,"Steer","700-799",1,"Medium and Large","Blackstone","September",-20.418441470000001,0,0]
[null,null,294,null,null,null,null,null,"Steer","700-799",1,"Medium and Large","Blackstone","October",-27.845079980000001,0,0]
[null,null,295,null,null,null,null,null,"Steer","700-799",1,"Medium and Large","Blackstone","November",-28.737609129999999,0,0]
[null,null,296,null,null,null,null,null,"Steer","700-799",1,"Medium and Large","Blackstone","December",-25.118342349999999,0,0]
[null,null,297,null,null,null,null,null,"Steer","300-399",2,"Medium and Large","Blackstone","January",-4.1760312239999999,0,0]
[null,null,298,null,null,null,null,null,"Steer","300-399",2,"Medium and Large","Blackstone","February",17.633992979999999,0,0]
[null,null,299,null,null,null,null,null,"Steer","300-399",2,"Medium and Large","Blackstone","March",10.74726274,0,0]
[null,null,300,null,null,null,null,null,"Steer","300-399",2,"Medium and Large","Blackstone","April",15.80998851,0,0]
[null,null,301,null,null,null,null,null,"Steer","300-399",2,"Medium and Large","Blackstone","May",-0.81961940799999999,0,0]
[null,null,302,null,null,null,null,null,"Steer","300-399",2,"Medium and Large","Blackstone","June",-1.324124278,0,0]
[null,null,303,null,null,null,null,null,"Steer","300-399",2,"Medium and Large","Blackstone","July",-8.9479202739999995,0,0]
[null,null,304,null,null,null,null,null,"Steer","300-399",2,"Medium and Large","Blackstone","August",-8.3954451379999995,0,0]
[null,null,305,null,null,null,null,null,"Steer","300-399",2,"Medium and Large","Blackstone","September",-10.01200397,0,0]
[null,null,306,null,null,null,null,null,"Steer","300-399",2,"Medium and Large","Blackstone","October",-12.27162165,0,0]
[null,null,307,null,null,null,null,null,"Steer","300-399",2,"Medium and Large","Blackstone","November",-13.30698413,0,0]
[null,null,308,null,null,null,null,null,"Steer","300-399",2,"Medium and Large","Blackstone","December",-9.9937590190000005,0,0]
[null,null,309,null,null,null,null,null,"Steer","400-499",2,"Medium and Large","Blackstone","January",9.1573021089999997,0,0]
[null,null,310,null,null,null,null,null,"Steer","400-499",2,"Medium and Large","Blackstone","February",12.68555548,0,0]
[null,null,311,null,null,null,null,null,"Steer","400-499",2,"Medium and Large","Blackstone","March",20.68476274,0,0]
[null,null,312,null,null,null,null,null,"Steer","400-499",2,"Medium and Large","Blackstone","April",3.011516291,0,0]
[null,null,313,null,null,null,null,null,"Steer","400-499",2,"Medium and Large","Blackstone","May",-7.0879527419999997,0,0]
[null,null,314,null,null,null,null,null,"Steer","400-499",2,"Medium and Large","Blackstone","June",-3.2212076120000002,0,0]
[null,null,315,null,null,null,null,null,"Steer","400-499",2,"Medium and Large","Blackstone","July",-8.8897952740000008,0,0]
[null,null,316,null,null,null,null,null,"Steer","400-499",2,"Medium and Large","Blackstone","August",-4.7866951379999998,0,0]
[null,null,317,null,null,null,null,null,"Steer","400-499",2,"Medium and Large","Blackstone","September",-5.9365873020000004,{"$f":"IF(AND(U$7=$I322,U$9=$J322,U$10=$K322,U$12=$L322,U$15=$M322,U$16=$N322),$O322,0)","v":0},{"$f":"IF(AND(V$7=$I322,V$9=$J322,V$10=$K322,V$12=$L322,V$15=$M322,V$16=$N322),$O322,0)","v":0}]
[null,null,318,null,null,null,null,null,"Steer","400-499",2,"Medium and Large","Blackstone","October",-7.3503716509999997,0,0]
[null,null,319,null,null,null,null,null,"Steer","400-499",2,"Medium and Large","Blackstone","November",-12.047817459999999,0,0]
[null,null,320,null,null,null,null,null,"Steer","400-499",2,"Medium and Large","Blackstone","December",-10.46792569,0,0]
[null,null,321,null,null,null,null,null,"Steer","500-599",2,"Medium and Large","Blackstone","January",5.5552187760000002,0,0]
[null,null,322,null,null,null,null,null,"Steer","500-599",2,"Medium and Large","Blackstone","February",14.08524298,0,0]
[null,null,323,null,null,null,null,null,"Steer","500-599",2,"Medium and Large","Blackstone","March",16.485179410000001,0,0]
[null,null,324,null,null,null,null,null,"Steer","500-599",2,"Medium and Large","Blackstone","April",1.0709885130000001,0,0]
[null,null,325,null,null,null,null,null,"Steer","500-599",2,"Medium and Large","Blackstone","May",-7.9098971860000002,0,0]
[null,null,326,null,null,null,null,null,"Steer","500-599",2,"Medium and Large","Blackstone","June",-7.5109159449999998,0,0]
[null,null,327,null,null,null,null,null,"Steer","500-599",2,"Medium and Large","Blackstone","July",-8.7906286080000005,0,0]
[null,null,328,null,null,null,null,null,"Steer","500-599",2,"Medium and Large","Blackstone","August",-11.495611800000001,0,-11.495611800000001]
[null,null,329,null,null,null,null,null,"Steer","500-599",2,"Medium and Large","Blackstone","September",-14.88867063,0,0]
[null,null,330,null,null,null,null,null,"Steer","500-599",2,"Medium and Large","Blackstone","October",-26.468934149999999,0,0]
[null,null,331,null,null,null,null,null,"Steer","500-599",2,"Medium and Large","Blackstone","November",-22.687817460000002,0,0]
[null,null,332,null,null,null,null,null,"Steer","500-599",2,"Medium and Large","Blackstone","December",-15.78042569,0,0]
[null,null,333,null,null,null,null,null,"Steer","600-699",2,"Medium and Large","Blackstone","January",0.84771877600000001,0,0]
[null,null,334,null,null,null,null,null,"Steer","600-699",2,"Medium and Large","Blackstone","February",17.348159649999999,0,0]
[null,null,335,null,null,null,null,null,"Steer","600-699",2,"Medium and Large","Blackstone","March",9.3930960730000006,0,0]
[null,null,336,null,null,null,null,null,"Steer","600-699",2,"Medium and Large","Blackstone","April",-9.4677892650000004,0,0]
[null,null,337,null,null,null,null,null,"Steer","600-699",2,"Medium and Large","Blackstone","May",-14.44211941,0,0]
[null,null,338,null,null,null,null,null,"Steer","600-699",2,"Medium and Large","Blackstone","June",-12.55995761,0,0]
[null,null,339,null,null,null,null,null,"Steer","600-699",2,"Medium and Large","Blackstone","July",-16.623961940000001,0,0]
[null,null,340,null,null,null,null,null,"Steer","600-699",2,"Medium and Large","Blackstone","August",-12.08822292,0,0]
[null,null,341,null,null,null,null,null,"Steer","600-699",2,"Medium and Large","Blackstone","September",-18.660781750000002,0,0]
[null,null,342,null,null,null,null,null,"Steer","600-699",2,"Medium and Large","Blackstone","October",-24.516204980000001,0,0]
[null,null,343,null,null,null,null,null,"Steer","600-699",2,"Medium and Large","Blackstone","November",-30.256984129999999,0,0]
[null,null,344,null,null,null,null,null,"Steer","600-699",2,"Medium and Large","Blackstone","December",-23.20334235,0,0]
[null,null,345,null,null,null,null,null,"Steer","700-799",2,"Medium and Large","Blackstone","January",-7.9260312239999999,0,0]
[null,null,346,null,null,null,null,null,"Steer","700-799",2,"Medium and Large","Blackstone","February",-1.3035070179999999,0,0]
[null,null,347,null,null,null,null,null,"Steer","700-799",2,"Medium and Large","Blackstone","March",-5.377737261,0,0]
[null,null,348,null,null,null,null,null,"Steer","700-799",2,"Medium and Large","Blackstone","April",-11.10667815,0,0]
[null,null,349,null,null,null,null,null,"Steer","700-799",2,"Medium and Large","Blackstone","May",-17.87961941,0,0]
[null,null,350,null,null,null,null,null,"Steer","700-799",2,"Medium and Large","Blackstone","June",-18.529124280000001,0,0]
[null,null,351,null,null,null,null,null,"Steer","700-799",2,"Medium and Large","Blackstone","July",-25.963753610000001,0,0]
[null,null,352,null,null,null,null,null,"Steer","700-799",2,"Medium and Large","Blackstone","August",-11.0621118,0,0]
[null,null,353,null,null,null,null,null,"Steer","700-799",2,"Medium and Large","Blackstone","September",-25.377003970000001,0,0]
[null,null,354,null,null,null,null,null,"Steer","700-799",2,"Medium and Large","Blackstone","October",-30.661621650000001,0,0]
[null,null,355,null,null,null,null,null,"Steer","700-799",2,"Medium and Large","Blackstone","November",-28.140317459999999,0,0]
[null,null,356,null,null,null,null,null,"Steer","700-799",2,"Medium and Large","Blackstone","December",-33.327092350000001,0,0]
[null,null,357,null,null,null,null,null,"Heifer","300-399",1,"Medium and Large","Blackstone","January",-14.55811456,0,0]
[null,null,358,null,null,null,null,null,"Heifer","300-399",1,"Medium and Large","Blackstone","February",-9.761840351,0,0]
[null,null,359,null,null,null,null,null,"Heifer","300-399",1,"Medium and Large","Blackstone","March",2.5844294059999999,0,0]
[null,null,360,null,null,null,null,null,"Heifer","300-399",1,"Medium and Large","Blackstone","April",-9.0233448200000002,0,0]
[null,null,361,null,null,null,null,null,"Heifer","300-399",1,"Medium and Large","Blackstone","May",-15.360730520000001,0,0]
[null,null,362,null,null,null,null,null,"Heifer","300-399",1,"Medium and Large","Blackstone","June",-18.904124280000001,0,0]
[null,null,363,null,null,null,null,null,"Heifer","300-399",1,"Medium and Large","Blackstone","July",-25.715420269999999,0,0]
[null,null,364,null,null,null,null,null,"Heifer","300-399",1,"Medium and Large","Blackstone","August",-25.29300069,0,0]
[null,null,365,null,null,null,null,null,"Heifer","300-399",1,"Medium and Large","Blackstone","September",-29.470337300000001,0,0]
[null,null,366,null,null,null,null,null,"Heifer","300-399",1,"Medium and Large","Blackstone","October",-39.161621650000001,0,0]
[null,null,367,null,null,null,null,null,"Heifer","300-399",1,"Medium and Large","Blackstone","November",-35.036150790000001,0,0]
[null,null,368,null,null,null,null,null,"Heifer","300-399",1,"Medium and Large","Blackstone","December",-37.033342349999998,0,0]
[null,null,369,null,null,null,null,null,"Heifer","400-499",1,"Medium and Large","Blackstone","January",-17.41728122,0,0]
[null,null,370,null,null,null,null,null,"Heifer","400-499",1,"Medium and Large","Blackstone","February",-9.0845486839999996,0,0]
[null,null,371,null,null,null,null,null,"Heifer","400-499",1,"Medium and Large","Blackstone","March",-1.1252372610000001,0,0]
[null,null,372,null,null,null,null,null,"Heifer","400-499",1,"Medium and Large","Blackstone","April",-7.7795948199999998,0,0]
[null,null,373,null,null,null,null,null,"Heifer","400-499",1,"Medium and Large","Blackstone","May",-22.539063850000002,0,0]
[null,null,374,null,null,null,null,null,"Heifer","400-499",1,"Medium and Large","Blackstone","June",-22.734749279999999,0,0]
[null,null,375,null,null,null,null,null,"Heifer","400-499",1,"Medium and Large","Blackstone","July",-25.215420269999999,0,0]
[null,null,376,null,null,null,null,null,"Heifer","400-499",1,"Medium and Large","Blackstone","August",-27.06369514,0,0]
[null,null,377,null,null,null,null,null,"Heifer","400-499",1,"Medium and Large","Blackstone","September",-30.155378970000001,0,0]
[null,null,378,null,null,null,null,null,"Heifer","400-499",1,"Medium and Large","Blackstone","October",-38.78093415,0,0]
[null,null,379,null,null,null,null,null,"Heifer","400-499",1,"Medium and Large","Blackstone","November",-36.133442459999998,0,0]
[null,null,380,null,null,null,null,null,"Heifer","400-499",1,"Medium and Large","Blackstone","December",-35.344592349999999,0,0]
[null,null,381,null,null,null,null,null,"Heifer","500-599",1,"Medium and Large","Blackstone","January",-21.67103122,{"$f":"IF(AND(U$7=$I386,U$9=$J386,U$10=$K386,U$12=$L386,U$15=$M386,U$16=$N386),$O386,0)","v":0},{"$f":"IF(AND(V$7=$I386,V$9=$J386,V$10=$K386,V$12=$L386,V$15=$M386,V$16=$N386),$O386,0)","v":0}]
[null,null,382,null,null,null,null,null,"Heifer","500-599",1,"Medium and Large","Blackstone","February",-14.16809035,0,0]
[null,null,383,null,null,null,null,null,"Heifer","500-599",1,"Medium and Large","Blackstone","March",-5.744924761,0,0]
[null,null,384,null,null,null,null,null,"Heifer","500-599",1,"Medium and Large","Blackstone","April",-13.281678149999999,0,0]
[null,null,385,null,null,null,null,null,"Heifer","500-599",1,"Medium and Large","Blackstone","May",-22.67781385,0,0]
[null,null,386,null,null,null,null,null,"Heifer","500-599",1,"Medium and Large","Blackstone","June",-24.501207610000002,0,0]
[null,null,387,null,null,null,null,null,"Heifer","500-599",1,"Medium and Large","Blackstone","July",-27.580003609999999,0,0]
[null,null,388,null,null,null,null,null,"Heifer","500-599",1,"Medium and Large","Blackstone","August",-26.443611799999999,0,0]
[null,null,389,null,null,null,null,null,"Heifer","500-599",1,"Medium and Large","Blackstone","September",-29.699691470000001,0,0]
[null,null,390,null,null,null,null,null,"Heifer","500-599",1,"Medium and Large","Blackstone","October",-36.599621650000003,0,0]
[null,null,391,null,null,null,null,null,"Heifer","500-599",1,"Medium and Large","Blackstone","November",-36.843442459999999,0,0]
[null,null,392,null,null,null,null,null,"Heifer","500-599",1,"Medium and Large","Blackstone","December",-37.300425689999997,0,0]
[null,null,393,null,null,null,null,null,"Heifer","600-699",1,"Medium and Large","Blackstone","January",-18.578427059999999,0,0]
[null,null,394,null,null,null,null,null,"Heifer","600-699",1,"Medium and Large","Blackstone","February",-22.661944519999999,0,0]
[null,null,395,null,null,null,null,null,"Heifer","600-699",1,"Medium and Large","Blackstone","March",-14.37740393,0,0]
[null,null,396,null,null,null,null,null,"Heifer","600-699",1,"Medium and Large","Blackstone","April",-21.747011489999998,0,0]
[null,null,397,null,null,null,null,null,"Heifer","600-699",1,"Medium and Large","Blackstone","May",-29.346563849999999,0,0]
[null,null,398,null,null,null,null,null,"Heifer","600-699",1,"Medium and Large","Blackstone","June",-31.852665949999999,0,0]
[null,null,399,null,null,null,null,null,"Heifer","600-699",1,"Medium and Large","Blackstone","July",-35.842816110000001,0,0]
[null,null,400,null,null,null,null,null,"Heifer","600-699",1,"Medium and Large","Blackstone","August",-32.426049300000003,0,0]
[null,null,401,null,null,null,null,null,"Heifer","600-699",1,"Medium and Large","Blackstone","September",-33.120378969999997,0,0]
[null,null,402,null,null,null,null,null,"Heifer","600-699",1,"Medium and Large","Blackstone","October",-42.412996649999997,0,0]
[null,null,403,null,null,null,null,null,"Heifer","600-699",1,"Medium and Large","Blackstone","November",-43.159900790000002,0,0]
[null,null,404,null,null,null,null,null,"Heifer","600-699",1,"Medium and Large","Blackstone","December",-42.058550689999997,0,0]
[null,null,405,null,null,null,null,null,"Heifer","700-799",1,"Medium and Large","Blackstone","January",-25.513739560000001,0,0]
[null,null,406,null,null,null,null,null,"Heifer","700-799",1,"Medium and Large","Blackstone","February",-29.553507020000001,0,0]
[null,null,407,null,null,null,null,null,"Heifer","700-799",1,"Medium and Large","Blackstone","March",-17.972487260000001,0,0]
[null,null,408,null,null,null,null,null,"Heifer","700-799",1,"Medium and Large","Blackstone","April",-32.023344819999998,0,0]
[null,null,409,null,null,null,null,null,"Heifer","700-799",1,"Medium and Large","Blackstone","May",-37.358230519999999,0,0]
[null,null,410,null,null,null,null,null,"Heifer","700-799",1,"Medium and Large","Blackstone","June",-41.449957609999998,0,0]
[null,null,411,null,null,null,null,null,"Heifer","700-799",1,"Medium and Large","Blackstone","July",-41.190420269999997,0,0]
[null,null,412,null,null,null,null,null,"Heifer","700-799",1,"Medium and Large","Blackstone","August",-43.345861800000002,0,0]
[null,null,413,null,null,null,null,null,"Heifer","700-799",1,"Medium and Large","Blackstone","September",-43.1925873,0,0]
[null,null,414,null,null,null,null,null,"Heifer","700-799",1,"Medium and Large","Blackstone","October",-49.781579979999997,0,0]
[null,null,415,null,null,null,null,null,"Heifer","700-799",1,"Medium and Large","Blackstone","November",-46.759275789999997,0,0]
[null,null,416,null,null,null,null,null,"Heifer","700-799",1,"Medium and Large","Blackstone","December",-44.691536800000002,0,0]
[null,null,417,null,null,null,null,null,"Heifer","300-399",2,"Medium and Large","Blackstone","January",-21.849781220000001,0,0]
[null,null,418,null,null,null,null,null,"Heifer","300-399",2,"Medium and Large","Blackstone","February",-0.71069451800000005,0,0]
[null,null,419,null,null,null,null,null,"Heifer","300-399",2,"Medium and Large","Blackstone","March",4.3700127389999999,0,0]
[null,null,420,null,null,null,null,null,"Heifer","300-399",2,"Medium and Large","Blackstone","April",-7.226678154,0,0]
[null,null,421,null,null,null,null,null,"Heifer","300-399",2,"Medium and Large","Blackstone","May",-20.086563850000001,0,0]
[null,null,422,null,null,null,null,null,"Heifer","300-399",2,"Medium and Large","Blackstone","June",-19.95620761,0,0]
[null,null,423,null,null,null,null,null,"Heifer","300-399",2,"Medium and Large","Blackstone","July",-27.055628609999999,0,0]
[null,null,424,null,null,null,null,null,"Heifer","300-399",2,"Medium and Large","Blackstone","August",-24.221486800000001,0,0]
[null,null,425,null,null,null,null,null,"Heifer","300-399",2,"Medium and Large","Blackstone","September",-36.219753969999999,0,0]
[null,null,426,null,null,null,null,null,"Heifer","300-399",2,"Medium and Large","Blackstone","October",-41.565684150000003,0,0]
[null,null,427,null,null,null,null,null,"Heifer","300-399",2,"Medium and Large","Blackstone","November",-40.869588290000003,0,0]
[null,null,428,null,null,null,null,null,"Heifer","300-399",2,"Medium and Large","Blackstone","December",-35.665217349999999,0,0]
[null,null,429,null,null,null,null,null,"Heifer","400-499",2,"Medium and Large","Blackstone","January",-17.911239559999999,0,0]
[null,null,430,null,null,null,null,null,"Heifer","400-499",2,"Medium and Large","Blackstone","February",-10.22100702,0,0]
[null,null,431,null,null,null,null,null,"Heifer","400-499",2,"Medium and Large","Blackstone","March",-3.044112261,0,0]
[null,null,432,null,null,null,null,null,"Heifer","400-499",2,"Medium and Large","Blackstone","April",-11.23051149,0,0]
[null,null,433,null,null,null,null,null,"Heifer","400-499",2,"Medium and Large","Blackstone","May",-22.632397189999999,0,0]
[null,null,434,null,null,null,null,null,"Heifer","400-499",2,"Medium and Large","Blackstone","June",-22.954749280000001,0,0]
[null,null,435,null,null,null,null,null,"Heifer","400-499",2,"Medium and Large","Blackstone","July",-26.345003609999999,0,0]
[null,null,436,null,null,null,null,null,"Heifer","400-499",2,"Medium and Large","Blackstone","August",-28.143361800000001,0,0]
[null,null,437,null,null,null,null,null,"Heifer","400-499",2,"Medium and Large","Blackstone","September",-30.935378969999999,0,0]
[null,null,438,null,null,null,null,null,"Heifer","400-499",2,"Medium and Large","Blackstone","October",-37.299059149999998,0,0]
[null,null,439,null,null,null,null,null,"Heifer","400-499",2,"Medium and Large","Blackstone","November",-36.557088290000003,0,0]
[null,null,440,null,null,null,null,null,"Heifer","400-499",2,"Medium and Large","Blackstone","December",-37.602925689999999,0,0]
[null,null,441,null,null,null,null,null,"Heifer","500-599",2,"Medium and Large","Blackstone","January",-20.254156219999999,0,0]
[null,null,442,null,null,null,null,null,"Heifer","500-599",2,"Medium and Large","Blackstone","February",-13.57256952,0,0]
[null,null,443,null,null,null,null,null,"Heifer","500-599",2,"Medium and Large","Blackstone","March",-5.9327372609999998,0,0]
[null,null,444,null,null,null,null,null,"Heifer","500-599",2,"Medium and Large","Blackstone","April",-16.175844819999998,0,0]
[null,null,445,null,null,null,null,null,"Heifer","500-599",2,"Medium and Large","Blackstone","May",-25.991980519999998,{"$f":"IF(AND(U$7=$I450,U$9=$J450,U$10=$K450,U$12=$L450,U$15=$M450,U$16=$N450),$O450,0)","v":0},{"$f":"IF(AND(V$7=$I450,V$9=$J450,V$10=$K450,V$12=$L450,V$15=$M450,V$16=$N450),$O450,0)","v":0}]
[null,null,446,null,null,null,null,null,"Heifer","500-599",2,"Medium and Large","Blackstone","June",-26.368207609999999,0,0]
[null,null,447,null,null,null,null,null,"Heifer","500-599",2,"Medium and Large","Blackstone","July",-30.82500361,0,0]
[null,null,448,null,null,null,null,null,"Heifer","500-599",2,"Medium and Large","Blackstone","August",-29.812674300000001,0,0]
[null,null,449,null,null,null,null,null,"Heifer","500-599",2,"Medium and Large","Blackstone","September",-33.153503970000003,0,0]
[null,null,450,null,null,null,null,null,"Heifer","500-599",2,"Medium and Large","Blackstone","October",-39.625996649999998,0,0]
[null,null,451,null,null,null,null,null,"Heifer","500-599",2,"Medium and Large","Blackstone","November",-42.600525789999999,0,0]
[null,null,452,null,null,null,null,null,"Heifer","500-599",2,"Medium and Large","Blackstone","December",-38.529175690000002,0,0]
[null,null,453,null,null,null,null,null,"Heifer","600-699",2,"Medium and Large","Blackstone","January",-26.713322890000001,0,0]
[null,null,454,null,null,null,null,null,"Heifer","600-699",2,"Medium and Large","Blackstone","February",-20.889132020000002,0,0]
[null,null,455,null,null,null,null,null,"Heifer","600-699",2,"Medium and Large","Blackstone","March",-22.68648726,0,0]
[null,null,456,null,null,null,null,null,"Heifer","600-699",2,"Medium and Large","Blackstone","April",-26.00626149,0,0]
[null,null,457,null,null,null,null,null,"Heifer","600-699",2,"Medium and Large","Blackstone","May",-33.344897189999998,0,0]
[null,null,458,null,null,null,null,null,"Heifer","600-699",2,"Medium and Large","Blackstone","June",-35.575165949999999,0,0]
[null,null,459,null,null,null,null,null,"Heifer","600-699",2,"Medium and Large","Blackstone","July",-37.920628610000001,0,0]
[null,null,460,null,null,null,null,null,"Heifer","600-699",2,"Medium and Large","Blackstone","August",-37.4895493,0,0]
[null,null,461,null,null,null,null,null,"Heifer","600-699",2,"Medium and Large","Blackstone","September",-38.971316469999998,0,0]
[null,null,462,null,null,null,null,null,"Heifer","600-699",2,"Medium and Large","Blackstone","October",-46.932934150000001,0,0]
[null,null,463,null,null,null,null,null,"Heifer","600-699",2,"Medium and Large","Blackstone","November",-47.96677579,0,0]
[null,null,464,null,null,null,null,null,"Heifer","600-699",2,"Medium and Large","Blackstone","December",-45.890009020000001,0,0]
[null,null,465,null,null,null,null,null,"Heifer","700-799",2,"Medium and Large","Blackstone","January",-28.301031219999999,0,0]
[null,null,466,null,null,null,null,null,"Heifer","700-799",2,"Medium and Large","Blackstone","February",-17.38684035,0,0]
[null,null,467,null,null,null,null,null,"Heifer","700-799",2,"Medium and Large","Blackstone","March",-40.211070589999999,0,0]
[null,null,468,null,null,null,null,null,"Heifer","700-799",2,"Medium and Large","Blackstone","April",-40.540011489999998,0,0]
[null,null,469,null,null,null,null,null,"Heifer","700-799",2,"Medium and Large","Blackstone","May",-43.324063850000002,0,0]
[null,null,470,null,null,null,null,null,"Heifer","700-799",2,"Medium and Large","Blackstone","June",-47.36245761,0,0]
[null,null,471,null,null,null,null,null,"Heifer","700-799",2,"Medium and Large","Blackstone","July",-52.344586939999999,0,0]
[null,null,472,null,null,null,null,null,"Heifer","700-799",2,"Medium and Large","Blackstone","August",-48.779611799999998,0,0]
[null,null,473,null,null,null,null,null,"Heifer","700-799",2,"Medium and Large","Blackstone","September",-43.745753970000003,0,0]
[null,null,474,null,null,null,null,null,"Heifer","700-799",2,"Medium and Large","Blackstone","October",-54.11578832,0,0]
[null,null,475,null,null,null,null,null,"Heifer","700-799",2,"Medium and Large","Blackstone","November",-61.649067459999998,0,0]
[null,null,476,null,null,null,null,null,"Heifer","700-799",2,"Medium and Large","Blackstone","December",-56.452092350000001,0,0]
[null,null,477,null,null,null,null,null,"Steer","300-399",1,"Medium and Large","Radiant","January",12.361191,0,0]
[null,null,478,null,null,null,null,null,"Steer","300-399",1,"Medium and Large","Radiant","February",14.36315965,0,0]
[null,null,479,null,null,null,null,null,"Steer","300-399",1,"Medium and Large","Radiant","March",7.2069849609999999,0,0]
[null,null,480,null,null,null,null,null,"Steer","300-399",1,"Medium and Large","Radiant","April",10.86554407,0,0]
[null,null,481,null,null,null,null,null,"Steer","300-399",1,"Medium and Large","Radiant","May",-6.7685082970000003,0,0]
[null,null,482,null,null,null,null,null,"Steer","300-399",1,"Medium and Large","Radiant","June",-15.070790949999999,0,0]
[null,null,483,null,null,null,null,null,"Steer","300-399",1,"Medium and Large","Radiant","July",-22.883753609999999,0,0]
[null,null,484,null,null,null,null,null,"Steer","300-399",1,"Medium and Large","Radiant","August",-18.2496118,0,0]
[null,null,485,null,null,null,null,null,"Steer","300-399",1,"Medium and Large","Radiant","September",-20.262003969999999,0,0]
[null,null,486,null,null,null,null,null,"Steer","300-399",1,"Medium and Large","Radiant","October",-22.038184149999999,0,0]
[null,null,487,null,null,null,null,null,"Steer","300-399",1,"Medium and Large","Radiant","November",-30.400768849999999,0,0]
[null,null,488,null,null,null,null,null,"Steer","300-399",1,"Medium and Large","Radiant","December",-33.536675690000003,0,0]
[null,null,489,null,null,null,null,null,"Steer","400-499",1,"Medium and Large","Radiant","January",23.505427109999999,0,0]
[null,null,490,null,null,null,null,null,"Steer","400-499",1,"Medium and Large","Radiant","February",25.416284650000001,0,0]
[null,null,491,null,null,null,null,null,"Steer","400-499",1,"Medium and Large","Radiant","March",16.253151630000001,0,0]
[null,null,492,null,null,null,null,null,"Steer","400-499",1,"Medium and Large","Radiant","April",12.170613510000001,0,0]
[null,null,493,null,null,null,null,null,"Steer","400-499",1,"Medium and Large","Radiant","May",-0.400313853,0,0]
[null,null,494,null,null,null,null,null,"Steer","400-499",1,"Medium and Large","Radiant","June",-9.8961659449999999,0,0]
[null,null,495,null,null,null,null,null,"Steer","400-499",1,"Medium and Large","Radiant","July",-11.907850829999999,0,0]
[null,null,496,null,null,null,null,null,"Steer","400-499",1,"Medium and Large","Radiant","August",-8.0068618049999998,0,0]
[null,null,497,null,null,null,null,null,"Steer","400-499",1,"Medium and Large","Radiant","September",-3.076170635,0,0]
[null,null,498,null,null,null,null,null,"Steer","400-499",1,"Medium and Large","Radiant","October",-14.32887165,0,0]
[null,null,499,null,null,null,null,null,"Steer","400-499",1,"Medium and Large","Radiant","November",-8.8686507940000006,0,0]
[null,null,500,null,null,null,null,null,"Steer","400-499",1,"Medium and Large","Radiant","December",-7.8514673520000002,0,0]
[null,null,501,null,null,null,null,null,"Steer","500-599",1,"Medium and Large","Radiant","January",8.5602708589999992,0,0]
[null,null,502,null,null,null,null,null,"Steer","500-599",1,"Medium and Large","Radiant","February",18.901180480000001,0,0]
[null,null,503,null,null,null,null,null,"Steer","500-599",1,"Medium and Large","Radiant","March",9.6380960729999998,0,0]
[null,null,504,null,null,null,null,null,"Steer","500-599",1,"Medium and Large","Radiant","April",9.4636829569999996,0,0]
[null,null,505,null,null,null,null,null,"Steer","500-599",1,"Medium and Large","Radiant","May",1.6730287399999999,0,0]
[null,null,506,null,null,null,null,null,"Steer","500-599",1,"Medium and Large","Radiant","June",-5.8846617779999999,0,0]
[null,null,507,null,null,null,null,null,"Steer","500-599",1,"Medium and Large","Radiant","July",-18.058014020000002,0,0]
[null,null,508,null,null,null,null,null,"Steer","500-599",1,"Medium and Large","Radiant","August",-6.7191534720000003,0,0]
[null,null,509,null,null,null,null,null,"Steer","500-599",1,"Medium and Large","Radiant","September",-12.60231647,{"$f":"IF(AND(U$7=$I514,U$9=$J514,U$10=$K514,U$12=$L514,U$15=$M514,U$16=$N514),$O514,0)","v":0},{"$f":"IF(AND(V$7=$I514,V$9=$J514,V$10=$K514,V$12=$L514,V$15=$M514,V$16=$N514),$O514,0)","v":0}]
[null,null,510,null,null,null,null,null,"Steer","500-599",1,"Medium and Large","Radiant","October",-16.027954980000001,0,0]
[null,null,511,null,null,null,null,null,"Steer","500-599",1,"Medium and Large","Radiant","November",-17.964900790000002,0,0]
[null,null,512,null,null,null,null,null,"Steer","500-599",1,"Medium and Large","Radiant","December",-9.3034812410000001,0,0]
[null,null,513,null,null,null,null,null,"Steer","600-699",1,"Medium and Large","Radiant","January",-0.32735414099999999,0,0]
[null,null,514,null,null,null,null,null,"Steer","600-699",1,"Medium and Large","Radiant","February",10.159097149999999,0,0]
[null,null,515,null,null,null,null,null,"Steer","600-699",1,"Medium and Large","Radiant","March",-0.22402615000000001,0,0]
[null,null,516,null,null,null,null,null,"Steer","600-699",1,"Medium and Large","Radiant","April",-1.4217892649999999,0,0]
[null,null,517,null,null,null,null,null,"Steer","600-699",1,"Medium and Large","Radiant","May",-10.204966629999999,0,0]
[null,null,518,null,null,null,null,null,"Steer","600-699",1,"Medium and Large","Radiant","June",-7.7991451119999997,0,0]
[null,null,519,null,null,null,null,null,"Steer","600-699",1,"Medium and Large","Radiant","July",-15.824517500000001,0,0]
[null,null,520,null,null,null,null,null,"Steer","600-699",1,"Medium and Large","Radiant","August",-10.196513189999999,0,0]
[null,null,521,null,null,null,null,null,"Steer","600-699",1,"Medium and Large","Radiant","September",-15.778844250000001,0,0]
[null,null,522,null,null,null,null,null,"Steer","600-699",1,"Medium and Large","Radiant","October",-17.013100819999998,0,0]
[null,null,523,null,null,null,null,null,"Steer","600-699",1,"Medium and Large","Radiant","November",-21.423661209999999,0,0]
[null,null,524,null,null,null,null,null,"Steer","600-699",1,"Medium and Large","Radiant","December",-16.155863190000002,0,0]
[null,null,525,null,null,null,null,null,"Steer","700-799",1,"Medium and Large","Radiant","January",-6.4480937239999996,0,0]
[null,null,526,null,null,null,null,null,"Steer","700-799",1,"Medium and Large","Radiant","February",-0.87958340599999996,0,0]
[null,null,527,null,null,null,null,null,"Steer","700-799",1,"Medium and Large","Radiant","March",-11.88962615,0,0]
[null,null,528,null,null,null,null,null,"Steer","700-799",1,"Medium and Large","Radiant","April",-8.3308448199999994,0,0]
[null,null,529,null,null,null,null,null,"Steer","700-799",1,"Medium and Large","Radiant","May",-22.296841629999999,0,0]
[null,null,530,null,null,null,null,null,"Steer","700-799",1,"Medium and Large","Radiant","June",-17.501978449999999,0,0]
[null,null,531,null,null,null,null,null,"Steer","700-799",1,"Medium and Large","Radiant","July",-19.219725830000002,0,0]
[null,null,532,null,null,null,null,null,"Steer","700-799",1,"Medium and Large","Radiant","August",-14.239479859999999,0,0]
[null,null,533,null,null,null,null,null,"Steer","700-799",1,"Medium and Large","Radiant","September",-19.250476190000001,0,0]
[null,null,534,null,null,null,null,null,"Steer","700-799",1,"Medium and Large","Radiant","October",-25.784552900000001,0,0]
[null,null,535,null,null,null,null,null,"Steer","700-799",1,"Medium and Large","Radiant","November",-27.757452879999999,0,0]
[null,null,536,null,null,null,null,null,"Steer","700-799",1,"Medium and Large","Radiant","December",-24.680634019999999,0,0]
[null,null,537,null,null,null,null,null,"Steer","300-399",2,"Medium and Large","Radiant","January",-4.6629756679999996,0,0]
[null,null,538,null,null,null,null,null,"Steer","300-399",2,"Medium and Large","Radiant","February",16.668992979999999,0,0]
[null,null,539,null,null,null,null,null,"Steer","300-399",2,"Medium and Large","Radiant","March",4.7780960730000004,0,0]
[null,null,540,null,null,null,null,null,"Steer","300-399",2,"Medium and Large","Radiant","April",12.42109962,0,0]
[null,null,541,null,null,null,null,null,"Steer","300-399",2,"Medium and Large","Radiant","May",-1.324063853,0,0]
[null,null,542,null,null,null,null,null,"Steer","300-399",2,"Medium and Large","Radiant","June",-11.763707610000001,0,0]
[null,null,543,null,null,null,null,null,"Steer","300-399",2,"Medium and Large","Radiant","July",-6.4037536079999997,0,0]
[null,null,544,null,null,null,null,null,"Steer","300-399",2,"Medium and Large","Radiant","August",-24.14544514,0,0]
[null,null,545,null,null,null,null,null,"Steer","300-399",2,"Medium and Large","Radiant","September",-19.105337299999999,0,0]
[null,null,546,null,null,null,null,null,"Steer","300-399",2,"Medium and Large","Radiant","October",-20.057454979999999,0,0]
[null,null,547,null,null,null,null,null,"Steer","300-399",2,"Medium and Large","Radiant","November",-19.26184524,0,0]
[null,null,548,null,null,null,null,null,"Steer","300-399",2,"Medium and Large","Radiant","December",-10.84792569,0,0]
[null,null,549,null,null,null,null,null,"Steer","400-499",2,"Medium and Large","Radiant","January",12.52459378,0,0]
[null,null,550,null,null,null,null,null,"Steer","400-499",2,"Medium and Large","Radiant","February",25.764617980000001,0,0]
[null,null,551,null,null,null,null,null,"Steer","400-499",2,"Medium and Large","Radiant","March",12.54259607,0,0]
[null,null,552,null,null,null,null,null,"Steer","400-499",2,"Medium and Large","Radiant","April",12.274155179999999,0,0]
[null,null,553,null,null,null,null,null,"Steer","400-499",2,"Medium and Large","Radiant","May",-2.9151749640000002,0,0]
[null,null,554,null,null,null,null,null,"Steer","400-499",2,"Medium and Large","Radiant","June",-4.5224576120000002,0,0]
[null,null,555,null,null,null,null,null,"Steer","400-499",2,"Medium and Large","Radiant","July",-14.485177220000001,0,0]
[null,null,556,null,null,null,null,null,"Steer","400-499",2,"Medium and Large","Radiant","August",-7.3431118050000004,0,0]
[null,null,557,null,null,null,null,null,"Steer","400-499",2,"Medium and Large","Radiant","September",-2.9974206350000001,0,0]
[null,null,558,null,null,null,null,null,"Steer","400-499",2,"Medium and Large","Radiant","October",-13.950329979999999,0,0]
[null,null,559,null,null,null,null,null,"Steer","400-499",2,"Medium and Large","Radiant","November",-9.5586507940000001,0,0]
[null,null,560,null,null,null,null,null,"Steer","400-499",2,"Medium and Large","Radiant","December",-8.3729256850000002,0,0]
[null,null,561,null,null,null,null,null,"Steer","500-599",2,"Medium and Large","Radiant","January",1.7726146089999999,0,0]
[null,null,562,null,null,null,null,null,"Steer","500-599",2,"Medium and Large","Radiant","February",18.792326320000001,0,0]
[null,null,563,null,null,null,null,null,"Steer","500-599",2,"Medium and Large","Radiant","March",7.5233738499999996,0,0]
[null,null,564,null,null,null,null,null,"Steer","500-599",2,"Medium and Large","Radiant","April",3.7795718460000001,0,0]
[null,null,565,null,null,null,null,null,"Steer","500-599",2,"Medium and Large","Radiant","May",-7.9927212599999997,0,0]
[null,null,566,null,null,null,null,null,"Steer","500-599",2,"Medium and Large","Radiant","June",-5.9433742780000003,0,0]
[null,null,567,null,null,null,null,null,"Steer","500-599",2,"Medium and Large","Radiant","July",-12.401045269999999,0,0]
[null,null,568,null,null,null,null,null,"Steer","500-599",2,"Medium and Large","Radiant","August",-9.9431118049999991,0,0]
[null,null,569,null,null,null,null,null,"Steer","500-599",2,"Medium and Large","Radiant","September",-13.869226189999999,0,0]
[null,null,570,null,null,null,null,null,"Steer","500-599",2,"Medium and Large","Radiant","October",-14.253496650000001,0,0]
[null,null,571,null,null,null,null,null,"Steer","500-599",2,"Medium and Large","Radiant","November",-18.287435519999999,0,0]
[null,null,572,null,null,null,null,null,"Steer","500-599",2,"Medium and Large","Radiant","December",-15.07042569,0,0]
[null,null,573,null,null,null,null,null,"Steer","600-699",2,"Medium and Large","Radiant","January",-10.65103122,{"$f":"IF(AND(U$7=$I578,U$9=$J578,U$10=$K578,U$12=$L578,U$15=$M578,U$16=$N578),$O578,0)","v":0},{"$f":"IF(AND(V$7=$I578,V$9=$J578,V$10=$K578,V$12=$L578,V$15=$M578,V$16=$N578),$O578,0)","v":0}]
[null,null,574,null,null,null,null,null,"Steer","600-699",2,"Medium and Large","Radiant","February",13.30701382,0,0]
[null,null,575,null,null,null,null,null,"Steer","600-699",2,"Medium and Large","Radiant","March",-1.943153927,0,0]
[null,null,576,null,null,null,null,null,"Steer","600-699",2,"Medium and Large","Radiant","April",-5.0575114870000002,0,0]
[null,null,577,null,null,null,null,null,"Steer","600-699",2,"Medium and Large","Radiant","May",-11.79628608,0,0]
[null,null,578,null,null,null,null,null,"Steer","600-699",2,"Medium and Large","Radiant","June",-16.507207609999998,0,0]
[null,null,579,null,null,null,null,null,"Steer","600-699",2,"Medium and Large","Radiant","July",-20.174586940000001,0,0]
[null,null,580,null,null,null,null,null,"Steer","600-699",2,"Medium and Large","Radiant","August",-12.805611799999999,0,0]
[null,null,581,null,null,null,null,null,"Steer","600-699",2,"Medium and Large","Radiant","September",-18.966274800000001,0,0]
[null,null,582,null,null,null,null,null,"Steer","600-699",2,"Medium and Large","Radiant","October",-21.827621650000001,0,0]
[null,null,583,null,null,null,null,null,"Steer","600-699",2,"Medium and Large","Radiant","November",-24.628911209999998,0,0]
[null,null,584,null,null,null,null,null,"Steer","600-699",2,"Medium and Large","Radiant","December",-19.486259019999999,0,0]
[null,null,585,null,null,null,null,null,"Steer","700-799",2,"Medium and Large","Radiant","January",-17.47915622,0,0]
[null,null,586,null,null,null,null,null,"Steer","700-799",2,"Medium and Large","Radiant","February",-11.58517368,0,0]
[null,null,587,null,null,null,null,null,"Steer","700-799",2,"Medium and Large","Radiant","March",-19.64403356,0,0]
[null,null,588,null,null,null,null,null,"Steer","700-799",2,"Medium and Large","Radiant","April",-12.161122600000001,0,0]
[null,null,589,null,null,null,null,null,"Steer","700-799",2,"Medium and Large","Radiant","May",-21.851841629999999,0,0]
[null,null,590,null,null,null,null,null,"Steer","700-799",2,"Medium and Large","Radiant","June",-26.945235390000001,0,0]
[null,null,591,null,null,null,null,null,"Steer","700-799",2,"Medium and Large","Radiant","July",-29.82458694,0,0]
[null,null,592,null,null,null,null,null,"Steer","700-799",2,"Medium and Large","Radiant","August",-24.783639579999999,0,0]
[null,null,593,null,null,null,null,null,"Steer","700-799",2,"Medium and Large","Radiant","September",-31.644503969999999,0,0]
[null,null,594,null,null,null,null,null,"Steer","700-799",2,"Medium and Large","Radiant","October",-28.363371650000001,0,0]
[null,null,595,null,null,null,null,null,"Steer","700-799",2,"Medium and Large","Radiant","November",-34.370525790000002,0,0]
[null,null,596,null,null,null,null,null,"Steer","700-799",2,"Medium and Large","Radiant","December",-39.270217350000003,0,0]
[null,null,597,null,null,null,null,null,"Heifer","300-399",1,"Medium and Large","Radiant","January",-20.476447889999999,0,0]
[null,null,598,null,null,null,null,null,"Heifer","300-399",1,"Medium and Large","Radiant","February",-12.424757019999999,0,0]
[null,null,599,null,null,null,null,null,"Heifer","300-399",1,"Medium and Large","Radiant","March",-11.214959479999999,0,0]
[null,null,600,null,null,null,null,null,"Heifer","300-399",1,"Medium and Large","Radiant","April",-12.57278926,0,0]
[null,null,601,null,null,null,null,null,"Heifer","300-399",1,"Medium and Large","Radiant","May",-23.324063850000002,0,0]
[null,null,602,null,null,null,null,null,"Heifer","300-399",1,"Medium and Large","Radiant","June",-34.73745761,0,0]
[null,null,603,null,null,null,null,null,"Heifer","300-399",1,"Medium and Large","Radiant","July",-39.53917027,0,0]
[null,null,604,null,null,null,null,null,"Heifer","300-399",1,"Medium and Large","Radiant","August",-26.3121118,0,0]
[null,null,605,null,null,null,null,null,"Heifer","300-399",1,"Medium and Large","Radiant","September",-40.76894841,0,0]
[null,null,606,null,null,null,null,null,"Heifer","300-399",1,"Medium and Large","Radiant","October",-48.962871649999997,0,0]
[null,null,607,null,null,null,null,null,"Heifer","300-399",1,"Medium and Large","Radiant","November",-45.079761900000001,0,0]
[null,null,608,null,null,null,null,null,"Heifer","300-399",1,"Medium and Large","Radiant","December",-49.035425689999997,0,0]
[null,null,609,null,null,null,null,null,"Heifer","400-499",1,"Medium and Large","Radiant","January",-16.89410414,0,0]
[null,null,610,null,null,null,null,null,"Heifer","400-499",1,"Medium and Large","Radiant","February",-13.241319519999999,0,0]
[null,null,611,null,null,null,null,null,"Heifer","400-499",1,"Medium and Large","Radiant","March",-16.271737259999998,0,0]
[null,null,612,null,null,null,null,null,"Heifer","400-499",1,"Medium and Large","Radiant","April",-9.1748725980000003,0,0]
[null,null,613,null,null,null,null,null,"Heifer","400-499",1,"Medium and Large","Radiant","May",-19.534480519999999,0,0]
[null,null,614,null,null,null,null,null,"Heifer","400-499",1,"Medium and Large","Radiant","June",-26.43499928,0,0]
[null,null,615,null,null,null,null,null,"Heifer","400-499",1,"Medium and Large","Radiant","July",-34.288267500000003,0,0]
[null,null,616,null,null,null,null,null,"Heifer","400-499",1,"Medium and Large","Radiant","August",-25.09743125,0,0]
[null,null,617,null,null,null,null,null,"Heifer","400-499",1,"Medium and Large","Radiant","September",-29.242003969999999,0,0]
[null,null,618,null,null,null,null,null,"Heifer","400-499",1,"Medium and Large","Radiant","October",-43.008738319999999,0,0]
[null,null,619,null,null,null,null,null,"Heifer","400-499",1,"Medium and Large","Radiant","November",-33.571150789999997,0,0]
[null,null,620,null,null,null,null,null,"Heifer","400-499",1,"Medium and Large","Radiant","December",-41.646050690000003,0,0]
[null,null,621,null,null,null,null,null,"Heifer","500-599",1,"Medium and Large","Radiant","January",-16.607281220000001,0,0]
[null,null,622,null,null,null,null,null,"Heifer","500-599",1,"Medium and Large","Radiant","February",-15.468281319999999,0,0]
[null,null,623,null,null,null,null,null,"Heifer","500-599",1,"Medium and Large","Radiant","March",-17.422626149999999,0,0]
[null,null,624,null,null,null,null,null,"Heifer","500-599",1,"Medium and Large","Radiant","April",-18.449136490000001,0,0]
[null,null,625,null,null,null,null,null,"Heifer","500-599",1,"Medium and Large","Radiant","May",-27.45443422,0,0]
[null,null,626,null,null,null,null,null,"Heifer","500-599",1,"Medium and Large","Radiant","June",-28.623780530000001,0,0]
[null,null,627,null,null,null,null,null,"Heifer","500-599",1,"Medium and Large","Radiant","July",-33.733059160000003,0,0]
[null,null,628,null,null,null,null,null,"Heifer","500-599",1,"Medium and Large","Radiant","August",-24.142681249999999,0,0]
[null,null,629,null,null,null,null,null,"Heifer","500-599",1,"Medium and Large","Radiant","September",-34.411552579999999,0,0]
[null,null,630,null,null,null,null,null,"Heifer","500-599",1,"Medium and Large","Radiant","October",-40.069642479999999,0,0]
[null,null,631,null,null,null,null,null,"Heifer","500-599",1,"Medium and Large","Radiant","November",-37.775442460000001,0,0]
[null,null,632,null,null,null,null,null,"Heifer","500-599",1,"Medium and Large","Radiant","December",-39.65998124,0,0]
[null,null,633,null,null,null,null,null,"Heifer","600-699",1,"Medium and Large","Radiant","January",-22.375562469999998,0,0]
[null,null,634,null,null,null,null,null,"Heifer","600-699",1,"Medium and Large","Radiant","February",-19.8494098,0,0]
[null,null,635,null,null,null,null,null,"Heifer","600-699",1,"Medium and Large","Radiant","March",-23.439103930000002,0,0]
[null,null,636,null,null,null,null,null,"Heifer","600-699",1,"Medium and Large","Radiant","April",-23.332372599999999,0,0]
[null,null,637,null,null,null,null,null,"Heifer","600-699",1,"Medium and Large","Radiant","May",-33.374063849999999,{"$f":"IF(AND(U$7=$I642,U$9=$J642,U$10=$K642,U$12=$L642,U$15=$M642,U$16=$N642),$O642,0)","v":0},{"$f":"IF(AND(V$7=$I642,V$9=$J642,V$10=$K642,V$12=$L642,V$15=$M642,V$16=$N642),$O642,0)","v":0}]
[null,null,638,null,null,null,null,null,"Heifer","600-699",1,"Medium and Large","Radiant","June",-34.012624279999997,0,0]
[null,null,639,null,null,null,null,null,"Heifer","600-699",1,"Medium and Large","Radiant","July",-37.583232770000002,0,0]
[null,null,640,null,null,null,null,null,"Heifer","600-699",1,"Medium and Large","Radiant","August",-25.563320139999998,0,0]
[null,null,641,null,null,null,null,null,"Heifer","600-699",1,"Medium and Large","Radiant","September",-30.84231647,0,0]
[null,null,642,null,null,null,null,null,"Heifer","600-699",1,"Medium and Large","Radiant","October",-40.395438319999997,0,0]
[null,null,643,null,null,null,null,null,"Heifer","600-699",1,"Medium and Large","Radiant","November",-42.72774107,0,0]
[null,null,644,null,null,null,null,null,"Heifer","600-699",1,"Medium and Large","Radiant","December",-41.01594652,0,0]
[null,null,645,null,null,null,null,null,"Heifer","700-799",1,"Medium and Large","Radiant","January",-31.093895809999999,0,0]
[null,null,646,null,null,null,null,null,"Heifer","700-799",1,"Medium and Large","Radiant","February",-29.459132019999998,0,0]
[null,null,647,null,null,null,null,null,"Heifer","700-799",1,"Medium and Large","Radiant","March",-34.101381709999998,0,0]
[null,null,648,null,null,null,null,null,"Heifer","700-799",1,"Medium and Large","Radiant","April",-30.650798519999999,0,0]
[null,null,649,null,null,null,null,null,"Heifer","700-799",1,"Medium and Large","Radiant","May",-42.29184163,0,0]
[null,null,650,null,null,null,null,null,"Heifer","700-799",1,"Medium and Large","Radiant","June",-38.571103450000003,0,0]
[null,null,651,null,null,null,null,null,"Heifer","700-799",1,"Medium and Large","Radiant","July",-45.435142499999998,0,0]
[null,null,652,null,null,null,null,null,"Heifer","700-799",1,"Medium and Large","Radiant","August",-38.860028470000003,0,0]
[null,null,653,null,null,null,null,null,"Heifer","700-799",1,"Medium and Large","Radiant","September",-42.890059520000001,0,0]
[null,null,654,null,null,null,null,null,"Heifer","700-799",1,"Medium and Large","Radiant","October",-50.874454980000003,0,0]
[null,null,655,null,null,null,null,null,"Heifer","700-799",1,"Medium and Large","Radiant","November",-46.67549107,0,0]
[null,null,656,null,null,null,null,null,"Heifer","700-799",1,"Medium and Large","Radiant","December",-45.715772909999998,0,0]
[null,null,657,null,null,null,null,null,"Heifer","300-399",2,"Medium and Large","Radiant","January",-21.086031219999999,0,0]
[null,null,658,null,null,null,null,null,"Heifer","300-399",2,"Medium and Large","Radiant","February",-8.8107986839999999,0,0]
[null,null,659,null,null,null,null,null,"Heifer","300-399",2,"Medium and Large","Radiant","March",-14.24607059,0,0]
[null,null,660,null,null,null,null,null,"Heifer","300-399",2,"Medium and Large","Radiant","April",-4.8663077829999999,0,0]
[null,null,661,null,null,null,null,null,"Heifer","300-399",2,"Medium and Large","Radiant","May",-19.15184163,0,0]
[null,null,662,null,null,null,null,null,"Heifer","300-399",2,"Medium and Large","Radiant","June",-27.810165949999998,0,0]
[null,null,663,null,null,null,null,null,"Heifer","300-399",2,"Medium and Large","Radiant","July",-34.776461939999997,0,0]
[null,null,664,null,null,null,null,null,"Heifer","300-399",2,"Medium and Large","Radiant","August",-19.666278470000002,0,0]
[null,null,665,null,null,null,null,null,"Heifer","300-399",2,"Medium and Large","Radiant","September",-23.717559519999998,0,0]
[null,null,666,null,null,null,null,null,"Heifer","300-399",2,"Medium and Large","Radiant","October",-42.550996650000002,0,0]
[null,null,667,null,null,null,null,null,"Heifer","300-399",2,"Medium and Large","Radiant","November",-41.937817459999998,0,0]
[null,null,668,null,null,null,null,null,"Heifer","300-399",2,"Medium and Large","Radiant","December",-40.097925689999997,0,0]
[null,null,669,null,null,null,null,null,"Heifer","400-499",2,"Medium and Large","Radiant","January",-16.315163170000002,0,0]
[null,null,670,null,null,null,null,null,"Heifer","400-499",2,"Medium and Large","Radiant","February",-4.2879861840000002,0,0]
[null,null,671,null,null,null,null,null,"Heifer","400-499",2,"Medium and Large","Radiant","March",-12.19951504,0,0]
[null,null,672,null,null,null,null,null,"Heifer","400-499",2,"Medium and Large","Radiant","April",-6.4945948199999997,0,0]
[null,null,673,null,null,null,null,null,"Heifer","400-499",2,"Medium and Large","Radiant","May",-21.198230519999999,0,0]
[null,null,674,null,null,null,null,null,"Heifer","400-499",2,"Medium and Large","Radiant","June",-23.109749279999999,0,0]
[null,null,675,null,null,null,null,null,"Heifer","400-499",2,"Medium and Large","Radiant","July",-27.048857770000001,0,0]
[null,null,676,null,null,null,null,null,"Heifer","400-499",2,"Medium and Large","Radiant","August",-19.341361800000001,0,0]
[null,null,677,null,null,null,null,null,"Heifer","400-499",2,"Medium and Large","Radiant","September",-24.37915675,0,0]
[null,null,678,null,null,null,null,null,"Heifer","400-499",2,"Medium and Large","Radiant","October",-34.225496649999997,0,0]
[null,null,679,null,null,null,null,null,"Heifer","400-499",2,"Medium and Large","Radiant","November",-34.925734130000002,0,0]
[null,null,680,null,null,null,null,null,"Heifer","400-499",2,"Medium and Large","Radiant","December",-36.95375902,0,0]
[null,null,681,null,null,null,null,null,"Heifer","500-599",2,"Medium and Large","Radiant","January",-14.58071872,0,0]
[null,null,682,null,null,null,null,null,"Heifer","500-599",2,"Medium and Large","Radiant","February",-7.697361184,0,0]
[null,null,683,null,null,null,null,null,"Heifer","500-599",2,"Medium and Large","Radiant","March",-12.83007059,0,0]
[null,null,684,null,null,null,null,null,"Heifer","500-599",2,"Medium and Large","Radiant","April",-17.777511489999998,0,0]
[null,null,685,null,null,null,null,null,"Heifer","500-599",2,"Medium and Large","Radiant","May",-20.75906385,0,0]
[null,null,686,null,null,null,null,null,"Heifer","500-599",2,"Medium and Large","Radiant","June",-27.74558261,0,0]
[null,null,687,null,null,null,null,null,"Heifer","500-599",2,"Medium and Large","Radiant","July",-29.828579999999999,0,0]
[null,null,688,null,null,null,null,null,"Heifer","500-599",2,"Medium and Large","Radiant","August",-22.872268049999999,0,0]
[null,null,689,null,null,null,null,null,"Heifer","500-599",2,"Medium and Large","Radiant","September",-28.553983129999999,0,0]
[null,null,690,null,null,null,null,null,"Heifer","500-599",2,"Medium and Large","Radiant","October",-34.756517479999999,0,0]
[null,null,691,null,null,null,null,null,"Heifer","500-599",2,"Medium and Large","Radiant","November",-37.088129960000003,0,0]
[null,null,692,null,null,null,null,null,"Heifer","500-599",2,"Medium and Large","Radiant","December",-40.084592350000001,0,0]
[null,null,693,null,null,null,null,null,"Heifer","600-699",2,"Medium and Large","Radiant","January",-18.271031220000001,0,0]
[null,null,694,null,null,null,null,null,"Heifer","600-699",2,"Medium and Large","Radiant","February",-14.76184035,0,0]
[null,null,695,null,null,null,null,null,"Heifer","600-699",2,"Medium and Large","Radiant","March",-23.277737259999999,0,0]
[null,null,696,null,null,null,null,null,"Heifer","600-699",2,"Medium and Large","Radiant","April",-25.05751149,0,0]
[null,null,697,null,null,null,null,null,"Heifer","600-699",2,"Medium and Large","Radiant","May",-30.469897190000001,0,0]
[null,null,698,null,null,null,null,null,"Heifer","600-699",2,"Medium and Large","Radiant","June",-32.510374280000001,0,0]
[null,null,699,null,null,null,null,null,"Heifer","600-699",2,"Medium and Large","Radiant","July",-34.58583694,0,0]
[null,null,700,null,null,null,null,null,"Heifer","600-699",2,"Medium and Large","Radiant","August",-28.624861800000001,0,0]
[null,null,701,null,null,null,null,null,"Heifer","600-699",2,"Medium and Large","Radiant","September",-31.904781750000001,{"$f":"IF(AND(U$7=$I706,U$9=$J706,U$10=$K706,U$12=$L706,U$15=$M706,U$16=$N706),$O706,0)","v":0},{"$f":"IF(AND(V$7=$I706,V$9=$J706,V$10=$K706,V$12=$L706,V$15=$M706,V$16=$N706),$O706,0)","v":0}]
[null,null,702,null,null,null,null,null,"Heifer","600-699",2,"Medium and Large","Radiant","October",-40.320371649999998,0,0]
[null,null,703,null,null,null,null,null,"Heifer","600-699",2,"Medium and Large","Radiant","November",-38.234067459999999,0,0]
[null,null,704,null,null,null,null,null,"Heifer","600-699",2,"Medium and Large","Radiant","December",-38.07917569,0,0]
[null,null,705,null,null,null,null,null,"Heifer","700-799",2,"Medium and Large","Radiant","January",-26.426031219999999,0,0]
[null,null,706,null,null,null,null,null,"Heifer","700-799",2,"Medium and Large","Radiant","February",-23.83184035,0,0]
[null,null,707,null,null,null,null,null,"Heifer","700-799",2,"Medium and Large","Radiant","March",-39.252737260000004,0,0]
[null,null,708,null,null,null,null,null,"Heifer","700-799",2,"Medium and Large","Radiant","April",-33.662233710000002,0,0]
[null,null,709,null,null,null,null,null,"Heifer","700-799",2,"Medium and Large","Radiant","May",-46.131563849999999,0,0]
[null,null,710,null,null,null,null,null,"Heifer","700-799",2,"Medium and Large","Radiant","June",-47.48745761,0,0]
[null,null,711,null,null,null,null,null,"Heifer","700-799",2,"Medium and Large","Radiant","July",-48.321670269999998,0,0]
[null,null,712,null,null,null,null,null,"Heifer","700-799",2,"Medium and Large","Radiant","August",-41.412111799999998,0,0]
[null,null,713,null,null,null,null,null,"Heifer","700-799",2,"Medium and Large","Radiant","September",-49.001170629999997,0,0]
[null,null,714,null,null,null,null,null,"Heifer","700-799",2,"Medium and Large","Radiant","October",-48.731413320000001,0,0]
[null,null,715,null,null,null,null,null,"Heifer","700-799",2,"Medium and Large","Radiant","November",-51.594484129999998,0,0]
[null,null,716,null,null,null,null,null,"Heifer","700-799",2,"Medium and Large","Radiant","December",-48.227925689999999,0,0]
[null,null,717,null,null,null,null,null,"Steer","300-399",1,"Medium and Large","Winchester","January",30.678135439999998,0,0]
[null,null,718,null,null,null,null,null,"Steer","300-399",1,"Medium and Large","Winchester","February",29.915659649999998,0,0]
[null,null,719,null,null,null,null,null,"Steer","300-399",1,"Medium and Large","Winchester","March",30.55642941,0,0]
[null,null,720,null,null,null,null,null,"Steer","300-399",1,"Medium and Large","Winchester","April",38.76832185,0,0]
[null,null,721,null,null,null,null,null,"Steer","300-399",1,"Medium and Large","Winchester","May",28.701213920000001,0,0]
[null,null,722,null,null,null,null,null,"Steer","300-399",1,"Medium and Large","Winchester","June",9.887542388,0,0]
[null,null,723,null,null,null,null,null,"Steer","300-399",1,"Medium and Large","Winchester","July",-0.315420274,0,0]
[null,null,724,null,null,null,null,null,"Steer","300-399",1,"Medium and Large","Winchester","August",7.4832006949999998,0,0]
[null,null,725,null,null,null,null,null,"Steer","300-399",1,"Medium and Large","Winchester","September",20.04132937,0,0]
[null,null,726,null,null,null,null,null,"Steer","300-399",1,"Medium and Large","Winchester","October",1.8260033490000001,0,0]
[null,null,727,null,null,null,null,null,"Steer","300-399",1,"Medium and Large","Winchester","November",-1.702150794,0,0]
[null,null,728,null,null,null,null,null,"Steer","300-399",1,"Medium and Large","Winchester","December",5.9020743150000001,0,0]
[null,null,729,null,null,null,null,null,"Steer","400-499",1,"Medium and Large","Winchester","January",27.773552110000001,0,0]
[null,null,730,null,null,null,null,null,"Steer","400-499",1,"Medium and Large","Winchester","February",38.626909650000002,0,0]
[null,null,731,null,null,null,null,null,"Steer","400-499",1,"Medium and Large","Winchester","March",27.297855330000001,0,0]
[null,null,732,null,null,null,null,null,"Steer","400-499",1,"Medium and Large","Winchester","April",33.908738509999999,0,0]
[null,null,733,null,null,null,null,null,"Steer","400-499",1,"Medium and Large","Winchester","May",17.789325040000001,0,0]
[null,null,734,null,null,null,null,null,"Steer","400-499",1,"Medium and Large","Winchester","June",5.0059798879999997,0,0]
[null,null,735,null,null,null,null,null,"Steer","400-499",1,"Medium and Large","Winchester","July",-5.6370869409999997,0,0]
[null,null,736,null,null,null,null,null,"Steer","400-499",1,"Medium and Large","Winchester","August",5.3978881950000002,0,0]
[null,null,737,null,null,null,null,null,"Steer","400-499",1,"Medium and Large","Winchester","September",9.0383085320000003,0,0]
[null,null,738,null,null,null,null,null,"Steer","400-499",1,"Medium and Large","Winchester","October",8.6722950149999996,0,0]
[null,null,739,null,null,null,null,null,"Steer","400-499",1,"Medium and Large","Winchester","November",2.5960158729999998,0,0]
[null,null,740,null,null,null,null,null,"Steer","400-499",1,"Medium and Large","Winchester","December",8.6031854259999996,0,0]
[null,null,741,null,null,null,null,null,"Steer","500-599",1,"Medium and Large","Winchester","January",17.967697940000001,0,0]
[null,null,742,null,null,null,null,null,"Steer","500-599",1,"Medium and Large","Winchester","February",26.767534650000002,0,0]
[null,null,743,null,null,null,null,null,"Steer","500-599",1,"Medium and Large","Winchester","March",21.305762739999999,0,0]
[null,null,744,null,null,null,null,null,"Steer","500-599",1,"Medium and Large","Winchester","April",23.260821849999999,0,0]
[null,null,745,null,null,null,null,null,"Steer","500-599",1,"Medium and Large","Winchester","May",13.344325039999999,0,0]
[null,null,746,null,null,null,null,null,"Steer","500-599",1,"Medium and Large","Winchester","June",3.430563222,0,0]
[null,null,747,null,null,null,null,null,"Steer","500-599",1,"Medium and Large","Winchester","July",-0.32448277399999997,0,0]
[null,null,748,null,null,null,null,null,"Steer","500-599",1,"Medium and Large","Winchester","August",5.5360548620000003,0,0]
[null,null,749,null,null,null,null,null,"Steer","500-599",1,"Medium and Large","Winchester","September",1.2029960319999999,0,0]
[null,null,750,null,null,null,null,null,"Steer","500-599",1,"Medium and Large","Winchester","October",-5.3268924850000001,0,0]
[null,null,751,null,null,null,null,null,"Steer","500-599",1,"Medium and Large","Winchester","November",-5.8320882940000001,0,0]
[null,null,752,null,null,null,null,null,"Steer","500-599",1,"Medium and Large","Winchester","December",-6.2987590190000002,0,0]
[null,null,753,null,null,null,null,null,"Steer","600-699",1,"Medium and Large","Winchester","January",8.2530312759999997,0,0]
[null,null,754,null,null,null,null,null,"Steer","600-699",1,"Medium and Large","Winchester","February",18.438819370000001,0,0]
[null,null,755,null,null,null,null,null,"Steer","600-699",1,"Medium and Large","Winchester","March",11.14031552,0,0]
[null,null,756,null,null,null,null,null,"Steer","600-699",1,"Medium and Large","Winchester","April",5.7501274020000004,0,0]
[null,null,757,null,null,null,null,null,"Steer","600-699",1,"Medium and Large","Winchester","May",-3.7303416309999999,0,0]
[null,null,758,null,null,null,null,null,"Steer","600-699",1,"Medium and Large","Winchester","June",-0.89233261200000002,0,0]
[null,null,759,null,null,null,null,null,"Steer","600-699",1,"Medium and Large","Winchester","July",-7.3035452740000002,0,0]
[null,null,760,null,null,null,null,null,"Steer","600-699",1,"Medium and Large","Winchester","August",-1.8425284719999999,0,0]
[null,null,761,null,null,null,null,null,"Steer","600-699",1,"Medium and Large","Winchester","September",-4.5083581349999999,0,0]
[null,null,762,null,null,null,null,null,"Steer","600-699",1,"Medium and Large","Winchester","October",-15.22457998,0,0]
[null,null,763,null,null,null,null,null,"Steer","600-699",1,"Medium and Large","Winchester","November",-14.14056746,0,0]
[null,null,764,null,null,null,null,null,"Steer","600-699",1,"Medium and Large","Winchester","December",-11.69993957,0,0]
[null,null,765,null,null,null,null,null,"Steer","700-799",1,"Medium and Large","Winchester","January",-2.9945312240000002,{"$f":"IF(AND(U$7=$I770,U$9=$J770,U$10=$K770,U$12=$L770,U$15=$M770,U$16=$N770),$O770,0)","v":0},{"$f":"IF(AND(V$7=$I770,V$9=$J770,V$10=$K770,V$12=$L770,V$15=$M770,V$16=$N770),$O770,0)","v":0}]
[null,null,766,null,null,null,null,null,"Steer","700-799",1,"Medium and Large","Winchester","February",3.5334721490000001,0,0]
[null,null,767,null,null,null,null,null,"Steer","700-799",1,"Medium and Large","Winchester","March",-4.187115039,0,0]
[null,null,768,null,null,null,null,null,"Steer","700-799",1,"Medium and Large","Winchester","April",-2.9204281540000001,0,0]
[null,null,769,null,null,null,null,null,"Steer","700-799",1,"Medium and Large","Winchester","May",-15.769230520000001,0,0]
[null,null,770,null,null,null,null,null,"Steer","700-799",1,"Medium and Large","Winchester","June",-11.796290949999999,0,0]
[null,null,771,null,null,null,null,null,"Steer","700-799",1,"Medium and Large","Winchester","July",-20.131253610000002,0,0]
[null,null,772,null,null,null,null,null,"Steer","700-799",1,"Medium and Large","Winchester","August",-10.71333403,0,0]
[null,null,773,null,null,null,null,null,"Steer","700-799",1,"Medium and Large","Winchester","September",-17.105128969999999,0,0]
[null,null,774,null,null,null,null,null,"Steer","700-799",1,"Medium and Large","Winchester","October",-19.15355915,0,0]
[null,null,775,null,null,null,null,null,"Steer","700-799",1,"Medium and Large","Winchester","November",-20.875192460000001,0,0]
[null,null,776,null,null,null,null,null,"Steer","700-799",1,"Medium and Large","Winchester","December",-19.550425690000001,0,0]
[null,null,777,null,null,null,null,null,"Steer","300-399",2,"Medium and Large","Winchester","January",21.829385439999999,0,0]
[null,null,778,null,null,null,null,null,"Steer","300-399",2,"Medium and Large","Winchester","February",15.15024298,0,0]
[null,null,779,null,null,null,null,null,"Steer","300-399",2,"Medium and Large","Winchester","March",24.107651629999999,0,0]
[null,null,780,null,null,null,null,null,"Steer","300-399",2,"Medium and Large","Winchester","April",24.800821849999998,0,0]
[null,null,781,null,null,null,null,null,"Steer","300-399",2,"Medium and Large","Winchester","May",17.40993615,0,0]
[null,null,782,null,null,null,null,null,"Steer","300-399",2,"Medium and Large","Winchester","June",3.7105632220000002,0,0]
[null,null,783,null,null,null,null,null,"Steer","300-399",2,"Medium and Large","Winchester","July",-12.38292027,0,0]
[null,null,784,null,null,null,null,null,"Steer","300-399",2,"Medium and Large","Winchester","August",2.435888195,0,0]
[null,null,785,null,null,null,null,null,"Steer","300-399",2,"Medium and Large","Winchester","September",6.5939335320000003,0,0]
[null,null,786,null,null,null,null,null,"Steer","300-399",2,"Medium and Large","Winchester","October",-9.4176841509999996,0,0]
[null,null,787,null,null,null,null,null,"Steer","300-399",2,"Medium and Large","Winchester","November",-6.7861507940000001,0,0]
[null,null,788,null,null,null,null,null,"Steer","300-399",2,"Medium and Large","Winchester","December",-1.0654256849999999,0,0]
[null,null,789,null,null,null,null,null,"Steer","400-499",2,"Medium and Large","Winchester","January",18.945656280000001,0,0]
[null,null,790,null,null,null,null,null,"Steer","400-499",2,"Medium and Large","Winchester","February",25.951180480000001,0,0]
[null,null,791,null,null,null,null,null,"Steer","400-499",2,"Medium and Large","Winchester","March",20.059596070000001,0,0]
[null,null,792,null,null,null,null,null,"Steer","400-499",2,"Medium and Large","Winchester","April",29.579432959999998,0,0]
[null,null,793,null,null,null,null,null,"Steer","400-499",2,"Medium and Large","Winchester","May",10.326630590000001,0,0]
[null,null,794,null,null,null,null,null,"Steer","400-499",2,"Medium and Large","Winchester","June",-0.18912427800000001,0,0]
[null,null,795,null,null,null,null,null,"Steer","400-499",2,"Medium and Large","Winchester","July",-9.996253608,0,0]
[null,null,796,null,null,null,null,null,"Steer","400-499",2,"Medium and Large","Winchester","August",-6.2908618049999996,0,0]
[null,null,797,null,null,null,null,null,"Steer","400-499",2,"Medium and Large","Winchester","September",-4.849087302,0,0]
[null,null,798,null,null,null,null,null,"Steer","400-499",2,"Medium and Large","Winchester","October",-1.3007466510000001,0,0]
[null,null,799,null,null,null,null,null,"Steer","400-499",2,"Medium and Large","Winchester","November",-5.8850049599999998,0,0]
[null,null,800,null,null,null,null,null,"Steer","400-499",2,"Medium and Large","Winchester","December",8.8597826479999995,0,0]
[null,null,801,null,null,null,null,null,"Steer","500-599",2,"Medium and Large","Winchester","January",10.846593779999999,0,0]
[null,null,802,null,null,null,null,null,"Steer","500-599",2,"Medium and Large","Winchester","February",26.269201320000001,0,0]
[null,null,803,null,null,null,null,null,"Steer","500-599",2,"Medium and Large","Winchester","March",14.887762739999999,0,0]
[null,null,804,null,null,null,null,null,"Steer","500-599",2,"Medium and Large","Winchester","April",14.31998851,0,0]
[null,null,805,null,null,null,null,null,"Steer","500-599",2,"Medium and Large","Winchester","May",1.2844361470000001,0,0]
[null,null,806,null,null,null,null,null,"Steer","500-599",2,"Medium and Large","Winchester","June",-2.5149576119999999,0,0]
[null,null,807,null,null,null,null,null,"Steer","500-599",2,"Medium and Large","Winchester","July",-11.571878610000001,0,0]
[null,null,808,null,null,null,null,null,"Steer","500-599",2,"Medium and Large","Winchester","August",2.1098881949999999,0,0]
[null,null,809,null,null,null,null,null,"Steer","500-599",2,"Medium and Large","Winchester","September",-13.02012897,0,0]
[null,null,810,null,null,null,null,null,"Steer","500-599",2,"Medium and Large","Winchester","October",-12.022663319999999,0,0]
[null,null,811,null,null,null,null,null,"Steer","500-599",2,"Medium and Large","Winchester","November",-14.353192460000001,0,0]
[null,null,812,null,null,null,null,null,"Steer","500-599",2,"Medium and Large","Winchester","December",-9.9952867970000003,0,0]
[null,null,813,null,null,null,null,null,"Steer","600-699",2,"Medium and Large","Winchester","January",1.1520937760000001,0,0]
[null,null,814,null,null,null,null,null,"Steer","600-699",2,"Medium and Large","Winchester","February",9.972534649,0,0]
[null,null,815,null,null,null,null,null,"Steer","600-699",2,"Medium and Large","Winchester","March",3.3062071839999998,0,0]
[null,null,816,null,null,null,null,null,"Steer","600-699",2,"Medium and Large","Winchester","April",2.2174885130000002,0,0]
[null,null,817,null,null,null,null,null,"Steer","600-699",2,"Medium and Large","Winchester","May",-10.59314719,0,0]
[null,null,818,null,null,null,null,null,"Steer","600-699",2,"Medium and Large","Winchester","June",-10.39745761,0,0]
[null,null,819,null,null,null,null,null,"Steer","600-699",2,"Medium and Large","Winchester","July",-16.89792027,0,0]
[null,null,820,null,null,null,null,null,"Steer","600-699",2,"Medium and Large","Winchester","August",-10.766695139999999,0,0]
[null,null,821,null,null,null,null,null,"Steer","600-699",2,"Medium and Large","Winchester","September",-18.844816470000001,0,0]
[null,null,822,null,null,null,null,null,"Steer","600-699",2,"Medium and Large","Winchester","October",-25.396434150000001,0,0]
[null,null,823,null,null,null,null,null,"Steer","600-699",2,"Medium and Large","Winchester","November",-23.723567460000002,0,0]
[null,null,824,null,null,null,null,null,"Steer","600-699",2,"Medium and Large","Winchester","December",-18.783759020000002,0,0]
[null,null,825,null,null,null,null,null,"Steer","700-799",2,"Medium and Large","Winchester","January",-10.799260390000001,0,0]
[null,null,826,null,null,null,null,null,"Steer","700-799",2,"Medium and Large","Winchester","February",1.618263816,0,0]
[null,null,827,null,null,null,null,null,"Steer","700-799",2,"Medium and Large","Winchester","March",-11.97168171,0,0]
[null,null,828,null,null,null,null,null,"Steer","700-799",2,"Medium and Large","Winchester","April",-13.582928150000001,0,0]
[null,null,829,null,null,null,null,null,"Steer","700-799",2,"Medium and Large","Winchester","May",-23.389063849999999,{"$f":"IF(AND(U$7=$I834,U$9=$J834,U$10=$K834,U$12=$L834,U$15=$M834,U$16=$N834),$O834,0)","v":0},{"$f":"IF(AND(V$7=$I834,V$9=$J834,V$10=$K834,V$12=$L834,V$15=$M834,V$16=$N834),$O834,0)","v":0}]
[null,null,830,null,null,null,null,null,"Steer","700-799",2,"Medium and Large","Winchester","June",-18.941624279999999,0,0]
[null,null,831,null,null,null,null,null,"Steer","700-799",2,"Medium and Large","Winchester","July",-24.020836939999999,0,0]
[null,null,832,null,null,null,null,null,"Steer","700-799",2,"Medium and Large","Winchester","August",-21.069111800000002,0,0]
[null,null,833,null,null,null,null,null,"Steer","700-799",2,"Medium and Large","Winchester","September",-22.133253969999998,0,0]
[null,null,834,null,null,null,null,null,"Steer","700-799",2,"Medium and Large","Winchester","October",-25.191621649999998,0,0]
[null,null,835,null,null,null,null,null,"Steer","700-799",2,"Medium and Large","Winchester","November",-24.506192460000001,0,0]
[null,null,836,null,null,null,null,null,"Steer","700-799",2,"Medium and Large","Winchester","December",-28.449175690000001,0,0]
[null,null,837,null,null,null,null,null,"Heifer","300-399",1,"Medium and Large","Winchester","January",-3.6813228910000002,0,0]
[null,null,838,null,null,null,null,null,"Heifer","300-399",1,"Medium and Large","Winchester","February",0.54065964899999996,0,0]
[null,null,839,null,null,null,null,null,"Heifer","300-399",1,"Medium and Large","Winchester","March",-2.275709483,0,0]
[null,null,840,null,null,null,null,null,"Heifer","300-399",1,"Medium and Large","Winchester","April",-4.5373725980000001,0,0]
[null,null,841,null,null,null,null,null,"Heifer","300-399",1,"Medium and Large","Winchester","May",-9.1382860749999999,0,0]
[null,null,842,null,null,null,null,null,"Heifer","300-399",1,"Medium and Large","Winchester","June",-14.521082610000001,0,0]
[null,null,843,null,null,null,null,null,"Heifer","300-399",1,"Medium and Large","Winchester","July",-18.576982770000001,0,0]
[null,null,844,null,null,null,null,null,"Heifer","300-399",1,"Medium and Large","Winchester","August",-9.730861805,0,0]
[null,null,845,null,null,null,null,null,"Heifer","300-399",1,"Medium and Large","Winchester","September",-13.29544147,0,0]
[null,null,846,null,null,null,null,null,"Heifer","300-399",1,"Medium and Large","Winchester","October",-26.454684149999999,0,0]
[null,null,847,null,null,null,null,null,"Heifer","300-399",1,"Medium and Large","Winchester","November",-27.68798413,0,0]
[null,null,848,null,null,null,null,null,"Heifer","300-399",1,"Medium and Large","Winchester","December",-22.923897910000001,0,0]
[null,null,849,null,null,null,null,null,"Heifer","400-499",1,"Medium and Large","Winchester","January",-5.183552057,0,0]
[null,null,850,null,null,null,null,null,"Heifer","400-499",1,"Medium and Large","Winchester","February",2.4463888159999998,0,0]
[null,null,851,null,null,null,null,null,"Heifer","400-499",1,"Medium and Large","Winchester","March",-6.4498483719999999,0,0]
[null,null,852,null,null,null,null,null,"Heifer","400-499",1,"Medium and Large","Winchester","April",-3.6789003760000001,0,0]
[null,null,853,null,null,null,null,null,"Heifer","400-499",1,"Medium and Large","Winchester","May",-12.68539719,0,0]
[null,null,854,null,null,null,null,null,"Heifer","400-499",1,"Medium and Large","Winchester","June",-18.43877011,0,0]
[null,null,855,null,null,null,null,null,"Heifer","400-499",1,"Medium and Large","Winchester","July",-21.39531611,0,0]
[null,null,856,null,null,null,null,null,"Heifer","400-499",1,"Medium and Large","Winchester","August",-17.860528469999998,0,0]
[null,null,857,null,null,null,null,null,"Heifer","400-499",1,"Medium and Large","Winchester","September",-17.858774799999999,0,0]
[null,null,858,null,null,null,null,null,"Heifer","400-499",1,"Medium and Large","Winchester","October",-27.685746649999999,0,0]
[null,null,859,null,null,null,null,null,"Heifer","400-499",1,"Medium and Large","Winchester","November",-27.41283829,0,0]
[null,null,860,null,null,null,null,null,"Heifer","400-499",1,"Medium and Large","Winchester","December",-22.804870130000001,0,0]
[null,null,861,null,null,null,null,null,"Heifer","500-599",1,"Medium and Large","Winchester","January",-11.844010389999999,0,0]
[null,null,862,null,null,null,null,null,"Heifer","500-599",1,"Medium and Large","Winchester","February",-3.466007018,0,0]
[null,null,863,null,null,null,null,null,"Heifer","500-599",1,"Medium and Large","Winchester","March",-13.87541319,0,0]
[null,null,864,null,null,null,null,null,"Heifer","500-599",1,"Medium and Large","Winchester","April",-17.88306704,0,0]
[null,null,865,null,null,null,null,null,"Heifer","500-599",1,"Medium and Large","Winchester","May",-18.89035552,0,0]
[null,null,866,null,null,null,null,null,"Heifer","500-599",1,"Medium and Large","Winchester","June",-19.947874280000001,0,0]
[null,null,867,null,null,null,null,null,"Heifer","500-599",1,"Medium and Large","Winchester","July",-24.76097583,0,0]
[null,null,868,null,null,null,null,null,"Heifer","500-599",1,"Medium and Large","Winchester","August",-21.009028470000001,0,0]
[null,null,869,null,null,null,null,null,"Heifer","500-599",1,"Medium and Large","Winchester","September",-28.605545630000002,0,0]
[null,null,870,null,null,null,null,null,"Heifer","500-599",1,"Medium and Large","Winchester","October",-38.095600820000001,0,0]
[null,null,871,null,null,null,null,null,"Heifer","500-599",1,"Medium and Large","Winchester","November",-32.86200496,0,0]
[null,null,872,null,null,null,null,null,"Heifer","500-599",1,"Medium and Large","Winchester","December",-29.233203459999999,0,0]
[null,null,873,null,null,null,null,null,"Heifer","600-699",1,"Medium and Large","Winchester","January",-22.128531219999999,0,0]
[null,null,874,null,null,null,null,null,"Heifer","600-699",1,"Medium and Large","Winchester","February",-13.00777785,0,0]
[null,null,875,null,null,null,null,null,"Heifer","600-699",1,"Medium and Large","Winchester","March",-18.161687260000001,0,0]
[null,null,876,null,null,null,null,null,"Heifer","600-699",1,"Medium and Large","Winchester","April",-22.63042815,0,0]
[null,null,877,null,null,null,null,null,"Heifer","600-699",1,"Medium and Large","Winchester","May",-27.27614719,0,0]
[null,null,878,null,null,null,null,null,"Heifer","600-699",1,"Medium and Large","Winchester","June",-28.606103449999999,0,0]
[null,null,879,null,null,null,null,null,"Heifer","600-699",1,"Medium and Large","Winchester","July",-31.80417027,0,0]
[null,null,880,null,null,null,null,null,"Heifer","600-699",1,"Medium and Large","Winchester","August",-24.887361800000001,0,0]
[null,null,881,null,null,null,null,null,"Heifer","600-699",1,"Medium and Large","Winchester","September",-32.463462300000003,0,0]
[null,null,882,null,null,null,null,null,"Heifer","600-699",1,"Medium and Large","Winchester","October",-40.90666332,0,0]
[null,null,883,null,null,null,null,null,"Heifer","600-699",1,"Medium and Large","Winchester","November",-37.403379960000002,0,0]
[null,null,884,null,null,null,null,null,"Heifer","600-699",1,"Medium and Large","Winchester","December",-36.731397909999998,0,0]
[null,null,885,null,null,null,null,null,"Heifer","700-799",1,"Medium and Large","Winchester","January",-21.199781219999998,0,0]
[null,null,886,null,null,null,null,null,"Heifer","700-799",1,"Medium and Large","Winchester","February",-19.09746535,0,0]
[null,null,887,null,null,null,null,null,"Heifer","700-799",1,"Medium and Large","Winchester","March",-26.874487259999999,0,0]
[null,null,888,null,null,null,null,null,"Heifer","700-799",1,"Medium and Large","Winchester","April",-29.218067040000001,0,0]
[null,null,889,null,null,null,null,null,"Heifer","700-799",1,"Medium and Large","Winchester","May",-31.32084163,0,0]
[null,null,890,null,null,null,null,null,"Heifer","700-799",1,"Medium and Large","Winchester","June",-33.914540950000003,0,0]
[null,null,891,null,null,null,null,null,"Heifer","700-799",1,"Medium and Large","Winchester","July",-35.900836939999998,0,0]
[null,null,892,null,null,null,null,null,"Heifer","700-799",1,"Medium and Large","Winchester","August",-33.716986800000001,0,0]
[null,null,893,null,null,null,null,null,"Heifer","700-799",1,"Medium and Large","Winchester","September",-38.182003969999997,{"$f":"IF(AND(U$7=$I898,U$9=$J898,U$10=$K898,U$12=$L898,U$15=$M898,U$16=$N898),$O898,0)","v":0},{"$f":"IF(AND(V$7=$I898,V$9=$J898,V$10=$K898,V$12=$L898,V$15=$M898,V$16=$N898),$O898,0)","v":0}]
[null,null,894,null,null,null,null,null,"Heifer","700-799",1,"Medium and Large","Winchester","October",-43.517371650000001,0,0]
[null,null,895,null,null,null,null,null,"Heifer","700-799",1,"Medium and Large","Winchester","November",-41.93531746,0,0]
[null,null,896,null,null,null,null,null,"Heifer","700-799",1,"Medium and Large","Winchester","December",-41.358759020000001,0,0]
[null,null,897,null,null,null,null,null,"Heifer","300-399",2,"Medium and Large","Winchester","January",-5.6026562240000004,0,0]
[null,null,898,null,null,null,null,null,"Heifer","300-399",2,"Medium and Large","Winchester","February",-6.0387153509999996,0,0]
[null,null,899,null,null,null,null,null,"Heifer","300-399",2,"Medium and Large","Winchester","March",-4.0083761500000001,0,0]
[null,null,900,null,null,null,null,null,"Heifer","300-399",2,"Medium and Large","Winchester","April",-0.36501148700000002,0,0]
[null,null,null,null,null,null,null,null,"Heifer","300-399",2,"Medium and Large","Winchester","May",-11.225730520000001,0,0]
[null,null,null,null,null,null,null,null,"Heifer","300-399",2,"Medium and Large","Winchester","June",-18.69283261,0,0]
[null,null,null,null,null,null,null,null,"Heifer","300-399",2,"Medium and Large","Winchester","July",-23.455628610000002,0,0]
[null,null,null,null,null,null,null,null,"Heifer","300-399",2,"Medium and Large","Winchester","August",-15.213611800000001,0,0]
[null,null,null,null,null,null,null,null,"Heifer","300-399",2,"Medium and Large","Winchester","September",-19.175441469999999,0,0]
[null,null,null,null,null,null,null,null,"Heifer","300-399",2,"Medium and Large","Winchester","October",-29.31078832,0,0]
[null,null,null,null,null,null,null,null,"Heifer","300-399",2,"Medium and Large","Winchester","November",-29.96077579,0,0]
[null,null,null,null,null,null,null,null,"Heifer","300-399",2,"Medium and Large","Winchester","December",-27.69125902,0,0]
[null,null,null,null,null,null,null,null,"Heifer","400-499",2,"Medium and Large","Winchester","January",-5.8465937239999999,0,0]
[null,null,null,null,null,null,null,null,"Heifer","400-499",2,"Medium and Large","Winchester","February",-1.1926736840000001,0,0]
[null,null,null,null,null,null,null,null,"Heifer","400-499",2,"Medium and Large","Winchester","March",-7.5324965199999996,0,0]
[null,null,null,null,null,null,null,null,"Heifer","400-499",2,"Medium and Large","Winchester","April",-6.7458448200000003,0,0]
[null,null,null,null,null,null,null,null,"Heifer","400-499",2,"Medium and Large","Winchester","May",-16.17256385,0,0]
[null,null,null,null,null,null,null,null,"Heifer","400-499",2,"Medium and Large","Winchester","June",-24.13514511,0,0]
[null,null,null,null,null,null,null,null,"Heifer","400-499",2,"Medium and Large","Winchester","July",-25.826253609999998,0,0]
[null,null,null,null,null,null,null,null,"Heifer","400-499",2,"Medium and Large","Winchester","August",-23.151111799999999,0,0]
[null,null,null,null,null,null,null,null,"Heifer","400-499",2,"Medium and Large","Winchester","September",-23.93669147,0,0]
[null,null,null,null,null,null,null,null,"Heifer","400-499",2,"Medium and Large","Winchester","October",-31.433934149999999,0,0]
[null,null,null,null,null,null,null,null,"Heifer","400-499",2,"Medium and Large","Winchester","November",-30.137817460000001,0,0]
[null,null,null,null,null,null,null,null,"Heifer","400-499",2,"Medium and Large","Winchester","December",-27.23500902,0,0]
[null,null,null,null,null,null,null,null,"Heifer","500-599",2,"Medium and Large","Winchester","January",-11.311947890000001,0,0]
[null,null,null,null,null,null,null,null,"Heifer","500-599",2,"Medium and Large","Winchester","February",-6.2256945180000001,0,0]
[null,null,null,null,null,null,null,null,"Heifer","500-599",2,"Medium and Large","Winchester","March",-14.897015039999999,0,0]
[null,null,null,null,null,null,null,null,"Heifer","500-599",2,"Medium and Large","Winchester","April",-11.74848371,0,0]
[null,null,null,null,null,null,null,null,"Heifer","500-599",2,"Medium and Large","Winchester","May",-20.105702740000002,0,0]
[null,null,null,null,null,null,null,null,"Heifer","500-599",2,"Medium and Large","Winchester","June",-23.094332609999999,0,0]
[null,null,null,null,null,null,null,null,"Heifer","500-599",2,"Medium and Large","Winchester","July",-29.842086940000002,0,0]
[null,null,null,null,null,null,null,null,"Heifer","500-599",2,"Medium and Large","Winchester","August",-26.4736118,0,0]
[null,null,null,null,null,null,null,null,"Heifer","500-599",2,"Medium and Large","Winchester","September",-33.612941470000003,0,0]
[null,null,null,null,null,null,null,null,"Heifer","500-599",2,"Medium and Large","Winchester","October",-43.746809149999997,0,0]
[null,null,null,null,null,null,null,null,"Heifer","500-599",2,"Medium and Large","Winchester","November",-35.550150790000004,0,0]
[null,null,null,null,null,null,null,null,"Heifer","500-599",2,"Medium and Large","Winchester","December",-31.993759019999999,0,0]
[null,null,null,null,null,null,null,null,"Heifer","600-699",2,"Medium and Large","Winchester","January",-24.728739560000001,0,0]
[null,null,null,null,null,null,null,null,"Heifer","600-699",2,"Medium and Large","Winchester","February",-15.796215350000001,0,0]
[null,null,null,null,null,null,null,null,"Heifer","600-699",2,"Medium and Large","Winchester","March",-18.531126149999999,0,0]
[null,null,null,null,null,null,null,null,"Heifer","600-699",2,"Medium and Large","Winchester","April",-22.03001149,0,0]
[null,null,null,null,null,null,null,null,"Heifer","600-699",2,"Medium and Large","Winchester","May",-24.367897190000001,0,0]
[null,null,null,null,null,null,null,null,"Heifer","600-699",2,"Medium and Large","Winchester","June",-30.31527011,0,0]
[null,null,null,null,null,null,null,null,"Heifer","600-699",2,"Medium and Large","Winchester","July",-35.72667027,0,0]
[null,null,null,null,null,null,null,null,"Heifer","600-699",2,"Medium and Large","Winchester","August",-29.258861799999998,0,0]
[null,null,null,null,null,null,null,null,"Heifer","600-699",2,"Medium and Large","Winchester","September",-35.76481647,0,0]
[null,null,null,null,null,null,null,null,"Heifer","600-699",2,"Medium and Large","Winchester","October",-40.668371649999997,0,0]
[null,null,null,null,null,null,null,null,"Heifer","600-699",2,"Medium and Large","Winchester","November",-41.002129959999998,0,0]
[null,null,null,null,null,null,null,null,"Heifer","600-699",2,"Medium and Large","Winchester","December",-43.201259020000002,0,0]
[null,null,null,null,null,null,null,null,"Heifer","700-799",2,"Medium and Large","Winchester","January",-31.297447890000001,0,0]
[null,null,null,null,null,null,null,null,"Heifer","700-799",2,"Medium and Large","Winchester","February",-29.583507019999999,0,0]
[null,null,null,null,null,null,null,null,"Heifer","700-799",2,"Medium and Large","Winchester","March",-30.909903929999999,0,0]
[null,null,null,null,null,null,null,null,"Heifer","700-799",2,"Medium and Large","Winchester","April",-34.633344819999998,0,0]
[null,null,null,null,null,null,null,null,"Heifer","700-799",2,"Medium and Large","Winchester","May",-36.50873052,0,0]
[null,null,null,null,null,null,null,null,"Heifer","700-799",2,"Medium and Large","Winchester","June",-37.980790949999999,0,0]
[null,null,null,null,null,null,null,null,"Heifer","700-799",2,"Medium and Large","Winchester","July",-41.763753610000002,0,0]
[null,null,null,null,null,null,null,null,"Heifer","700-799",2,"Medium and Large","Winchester","August",-35.409111799999998,0,0]
[null,null,null,null,null,null,null,null,"Heifer","700-799",2,"Medium and Large","Winchester","September",-37.841170630000001,0,0]
[null,null,null,null,null,null,null,null,"Heifer","700-799",2,"Medium and Large","Winchester","October",-45.085059149999999,0,0]
[null,null,null,null,null,null,null,null,"Heifer","700-799",2,"Medium and Large","Winchester","November",-48.56212996,0,0]
[null,null,null,null,null,null,null,null,"Heifer","700-799",2,"Medium and Large","Winchester","December",-44.577092350000001,0,0]
[null,null,null,null,null,null,null,null,"Steer","300-399",1,"Medium and Large","Lynchburg","January",26.449406280000002,{"$f":"IF(AND(U$7=$I962,U$9=$J962,U$10=$K962,U$12=$L962,U$15=$M962,U$16=$N962),$O962,0)","v":0},{"$f":"IF(AND(V$7=$I962,V$9=$J962,V$10=$K962,V$12=$L962,V$15=$M962,V$16=$N962),$O962,0)","v":0}]
[null,null,null,null,null,null,null,null,"Steer","300-399",1,"Medium and Large","Lynchburg","February",25.206388820000001,0,0]
[null,null,null,null,null,null,null,null,"Steer","300-399",1,"Medium and Large","Lynchburg","March",12.49392941,0,0]
[null,null,null,null,null,null,null,null,"Steer","300-399",1,"Medium and Large","Lynchburg","April",12.10054407,0,0]
[null,null,null,null,null,null,null,null,"Steer","300-399",1,"Medium and Large","Lynchburg","May",3.8309361470000001,0,0]
[null,null,null,null,null,null,null,null,"Steer","300-399",1,"Medium and Large","Lynchburg","June",1.1396257219999999,0,0]
[null,null,null,null,null,null,null,null,"Steer","300-399",1,"Medium and Large","Lynchburg","July",-11.11500361,0,0]
[null,null,null,null,null,null,null,null,"Steer","300-399",1,"Medium and Large","Lynchburg","August",-0.89842430500000003,0,0]
[null,null,null,null,null,null,null,null,"Steer","300-399",1,"Medium and Large","Lynchburg","September",2.0576210320000001,0,0]
[null,null,null,null,null,null,null,null,"Steer","300-399",1,"Medium and Large","Lynchburg","October",-4.4872466510000004,0,0]
[null,null,null,null,null,null,null,null,"Steer","300-399",1,"Medium and Large","Lynchburg","November",-6.3813382939999999,0,0]
[null,null,null,null,null,null,null,null,"Steer","300-399",1,"Medium and Large","Lynchburg","December",5.1524909809999997,0,0]
[null,null,null,null,null,null,null,null,"Steer","400-499",1,"Medium and Large","Lynchburg","January",11.755697939999999,0,0]
[null,null,null,null,null,null,null,null,"Steer","400-499",1,"Medium and Large","Lynchburg","February",20.606805479999998,0,0]
[null,null,null,null,null,null,null,null,"Steer","400-499",1,"Medium and Large","Lynchburg","March",10.545387740000001,0,0]
[null,null,null,null,null,null,null,null,"Steer","400-499",1,"Medium and Large","Lynchburg","April",8.6723496240000006,0,0]
[null,null,null,null,null,null,null,null,"Steer","400-499",1,"Medium and Large","Lynchburg","May",-2.372702742,0,0]
[null,null,null,null,null,null,null,null,"Steer","400-499",1,"Medium and Large","Lynchburg","June",-5.1518951120000001,0,0]
[null,null,null,null,null,null,null,null,"Steer","400-499",1,"Medium and Large","Lynchburg","July",-10.09940639,0,0]
[null,null,null,null,null,null,null,null,"Steer","400-499",1,"Medium and Large","Lynchburg","August",-6.4937576379999999,0,0]
[null,null,null,null,null,null,null,null,"Steer","400-499",1,"Medium and Large","Lynchburg","September",-8.8015664680000008,0,0]
[null,null,null,null,null,null,null,null,"Steer","400-499",1,"Medium and Large","Lynchburg","October",-14.504642479999999,0,0]
[null,null,null,null,null,null,null,null,"Steer","400-499",1,"Medium and Large","Lynchburg","November",-14.48369246,0,0]
[null,null,null,null,null,null,null,null,"Steer","400-499",1,"Medium and Large","Lynchburg","December",-7.8729256850000002,0,0]
[null,null,null,null,null,null,null,null,"Steer","500-599",1,"Medium and Large","Lynchburg","January",-1.919979141,0,0]
[null,null,null,null,null,null,null,null,"Steer","500-599",1,"Medium and Large","Lynchburg","February",11.11472215,0,0]
[null,null,null,null,null,null,null,null,"Steer","500-599",1,"Medium and Large","Lynchburg","March",7.9744571840000003,0,0]
[null,null,null,null,null,null,null,null,"Steer","500-599",1,"Medium and Large","Lynchburg","April",4.3049885129999996,0,0]
[null,null,null,null,null,null,null,null,"Steer","500-599",1,"Medium and Large","Lynchburg","May",-7.9097860750000004,0,0]
[null,null,null,null,null,null,null,null,"Steer","500-599",1,"Medium and Large","Lynchburg","June",-10.992471500000001,0,0]
[null,null,null,null,null,null,null,null,"Steer","500-599",1,"Medium and Large","Lynchburg","July",-13.09996194,0,0]
[null,null,null,null,null,null,null,null,"Steer","500-599",1,"Medium and Large","Lynchburg","August",-12.85232014,0,0]
[null,null,null,null,null,null,null,null,"Steer","500-599",1,"Medium and Large","Lynchburg","September",-16.959014379999999,0,0]
[null,null,null,null,null,null,null,null,"Steer","500-599",1,"Medium and Large","Lynchburg","October",-22.124309149999998,0,0]
[null,null,null,null,null,null,null,null,"Steer","500-599",1,"Medium and Large","Lynchburg","November",-24.229463290000002,0,0]
[null,null,null,null,null,null,null,null,"Steer","500-599",1,"Medium and Large","Lynchburg","December",-21.81139791,0,0]
[null,null,null,null,null,null,null,null,"Steer","600-699",1,"Medium and Large","Lynchburg","January",-5.3827603909999997,0,0]
[null,null,null,null,null,null,null,null,"Steer","600-699",1,"Medium and Large","Lynchburg","February",4.5082638160000004,0,0]
[null,null,null,null,null,null,null,null,"Steer","600-699",1,"Medium and Large","Lynchburg","March",-3.8856539269999999,0,0]
[null,null,null,null,null,null,null,null,"Steer","600-699",1,"Medium and Large","Lynchburg","April",-4.240983709,0,0]
[null,null,null,null,null,null,null,null,"Steer","600-699",1,"Medium and Large","Lynchburg","May",-10.45092496,0,0]
[null,null,null,null,null,null,null,null,"Steer","600-699",1,"Medium and Large","Lynchburg","June",-12.614339559999999,0,0]
[null,null,null,null,null,null,null,null,"Steer","600-699",1,"Medium and Large","Lynchburg","July",-13.482496660000001,0,0]
[null,null,null,null,null,null,null,null,"Steer","600-699",1,"Medium and Large","Lynchburg","August",-13.7119868,0,0]
[null,null,null,null,null,null,null,null,"Steer","600-699",1,"Medium and Large","Lynchburg","September",-18.16862897,0,0]
[null,null,null,null,null,null,null,null,"Steer","600-699",1,"Medium and Large","Lynchburg","October",-26.774861229999999,0,0]
[null,null,null,null,null,null,null,null,"Steer","600-699",1,"Medium and Large","Lynchburg","November",-26.541546629999999,0,0]
[null,null,null,null,null,null,null,null,"Steer","600-699",1,"Medium and Large","Lynchburg","December",-21.36355069,0,0]
[null,null,null,null,null,null,null,null,"Steer","700-799",1,"Medium and Large","Lynchburg","January",-9.6114062239999996,0,0]
[null,null,null,null,null,null,null,null,"Steer","700-799",1,"Medium and Large","Lynchburg","February",-2.6414236839999998,0,0]
[null,null,null,null,null,null,null,null,"Steer","700-799",1,"Medium and Large","Lynchburg","March",-12.74718171,0,0]
[null,null,null,null,null,null,null,null,"Steer","700-799",1,"Medium and Large","Lynchburg","April",-4.2716781539999999,0,0]
[null,null,null,null,null,null,null,null,"Steer","700-799",1,"Medium and Large","Lynchburg","May",-15.66673052,0,0]
[null,null,null,null,null,null,null,null,"Steer","700-799",1,"Medium and Large","Lynchburg","June",-13.90910345,0,0]
[null,null,null,null,null,null,null,null,"Steer","700-799",1,"Medium and Large","Lynchburg","July",-20.14339944,0,0]
[null,null,null,null,null,null,null,null,"Steer","700-799",1,"Medium and Large","Lynchburg","August",-17.191965969999998,0,0]
[null,null,null,null,null,null,null,null,"Steer","700-799",1,"Medium and Large","Lynchburg","September",-19.301920630000001,0,0]
[null,null,null,null,null,null,null,null,"Steer","700-799",1,"Medium and Large","Lynchburg","October",-27.120434150000001,0,0]
[null,null,null,null,null,null,null,null,"Steer","700-799",1,"Medium and Large","Lynchburg","November",-27.192025789999999,0,0]
[null,null,null,null,null,null,null,null,"Steer","700-799",1,"Medium and Large","Lynchburg","December",-20.70730069,0,0]
[null,null,null,null,null,null,null,null,"Steer","300-399",2,"Medium and Large","Lynchburg","January",43.088343780000002,0,0]
[null,null,null,null,null,null,null,null,"Steer","300-399",2,"Medium and Large","Lynchburg","February",44.560451319999999,0,0]
[null,null,null,null,null,null,null,null,"Steer","300-399",2,"Medium and Large","Lynchburg","March",32.500262739999997,0,0]
[null,null,null,null,null,null,null,null,"Steer","300-399",2,"Medium and Large","Lynchburg","April",28.339988510000001,0,0]
[null,null,null,null,null,null,null,null,"Steer","300-399",2,"Medium and Large","Lynchburg","May",18.00660281,{"$f":"IF(AND(U$7=$I1026,U$9=$J1026,U$10=$K1026,U$12=$L1026,U$15=$M1026,U$16=$N1026),$O1026,0)","v":0},{"$f":"IF(AND(V$7=$I1026,V$9=$J1026,V$10=$K1026,V$12=$L1026,V$15=$M1026,V$16=$N1026),$O1026,0)","v":0}]
[null,null,null,null,null,null,null,null,"Steer","300-399",2,"Medium and Large","Lynchburg","June",12.911167389999999,0,0]
[null,null,null,null,null,null,null,null,"Steer","300-399",2,"Medium and Large","Lynchburg","July",5.3241213920000003,0,0]
[null,null,null,null,null,null,null,null,"Steer","300-399",2,"Medium and Large","Lynchburg","August",15.118263199999999,0,0]
[null,null,null,null,null,null,null,null,"Steer","300-399",2,"Medium and Large","Lynchburg","September",17.52412103,0,0]
[null,null,null,null,null,null,null,null,"Steer","300-399",2,"Medium and Large","Lynchburg","October",8.5208783490000002,0,0]
[null,null,null,null,null,null,null,null,"Steer","300-399",2,"Medium and Large","Lynchburg","November",12.03987004,0,0]
[null,null,null,null,null,null,null,null,"Steer","300-399",2,"Medium and Large","Lynchburg","December",25.25707431,0,0]
[null,null,null,null,null,null,null,null,"Steer","400-499",2,"Medium and Large","Lynchburg","January",31.48328128,0,0]
[null,null,null,null,null,null,null,null,"Steer","400-499",2,"Medium and Large","Lynchburg","February",34.683992979999999,0,0]
[null,null,null,null,null,null,null,null,"Steer","400-499",2,"Medium and Large","Lynchburg","March",22.796429409999998,0,0]
[null,null,null,null,null,null,null,null,"Steer","400-499",2,"Medium and Large","Lynchburg","April",17.546238509999998,0,0]
[null,null,null,null,null,null,null,null,"Steer","400-499",2,"Medium and Large","Lynchburg","May",6.714519481,0,0]
[null,null,null,null,null,null,null,null,"Steer","400-499",2,"Medium and Large","Lynchburg","June",6.3538965550000004,0,0]
[null,null,null,null,null,null,null,null,"Steer","400-499",2,"Medium and Large","Lynchburg","July",-2.0003161079999998,0,0]
[null,null,null,null,null,null,null,null,"Steer","400-499",2,"Medium and Large","Lynchburg","August",3.9384506949999998,0,0]
[null,null,null,null,null,null,null,null,"Steer","400-499",2,"Medium and Large","Lynchburg","September",4.0358710320000002,0,0]
[null,null,null,null,null,null,null,null,"Steer","400-499",2,"Medium and Large","Lynchburg","October",-1.433496651,0,0]
[null,null,null,null,null,null,null,null,"Steer","400-499",2,"Medium and Large","Lynchburg","November",-1.3558174599999999,0,0]
[null,null,null,null,null,null,null,null,"Steer","400-499",2,"Medium and Large","Lynchburg","December",10.54457431,0,0]
[null,null,null,null,null,null,null,null,"Steer","500-599",2,"Medium and Large","Lynchburg","January",12.12646878,0,0]
[null,null,null,null,null,null,null,null,"Steer","500-599",2,"Medium and Large","Lynchburg","February",21.06222215,0,0]
[null,null,null,null,null,null,null,null,"Steer","500-599",2,"Medium and Large","Lynchburg","March",19.45667941,0,0]
[null,null,null,null,null,null,null,null,"Steer","500-599",2,"Medium and Large","Lynchburg","April",17.443738509999999,0,0]
[null,null,null,null,null,null,null,null,"Steer","500-599",2,"Medium and Large","Lynchburg","May",1.008519481,0,0]
[null,null,null,null,null,null,null,null,"Steer","500-599",2,"Medium and Large","Lynchburg","June",0.87820905500000002,0,0]
[null,null,null,null,null,null,null,null,"Steer","500-599",2,"Medium and Large","Lynchburg","July",-5.4781911079999999,0,0]
[null,null,null,null,null,null,null,null,"Steer","500-599",2,"Medium and Large","Lynchburg","August",-3.9477368049999999,-3.9477368049999999,0]
[null,null,null,null,null,null,null,null,"Steer","500-599",2,"Medium and Large","Lynchburg","September",-7.367816468,0,0]
[null,null,null,null,null,null,null,null,"Steer","500-599",2,"Medium and Large","Lynchburg","October",-12.160121650000001,0,0]
[null,null,null,null,null,null,null,null,"Steer","500-599",2,"Medium and Large","Lynchburg","November",-9.1915049599999996,0,0]
[null,null,null,null,null,null,null,null,"Steer","500-599",2,"Medium and Large","Lynchburg","December",-3.9691756850000002,0,0]
[null,null,null,null,null,null,null,null,"Steer","600-699",2,"Medium and Large","Lynchburg","January",-0.60003122399999997,0,0]
[null,null,null,null,null,null,null,null,"Steer","600-699",2,"Medium and Large","Lynchburg","February",10.460451320000001,0,0]
[null,null,null,null,null,null,null,null,"Steer","600-699",2,"Medium and Large","Lynchburg","March",5.2285960730000003,0,0]
[null,null,null,null,null,null,null,null,"Steer","600-699",2,"Medium and Large","Lynchburg","April",5.9791551800000002,0,0]
[null,null,null,null,null,null,null,null,"Steer","600-699",2,"Medium and Large","Lynchburg","May",-6.3955638529999996,0,0]
[null,null,null,null,null,null,null,null,"Steer","600-699",2,"Medium and Large","Lynchburg","June",-7.4864992780000001,0,0]
[null,null,null,null,null,null,null,null,"Steer","600-699",2,"Medium and Large","Lynchburg","July",-11.54758694,0,0]
[null,null,null,null,null,null,null,null,"Steer","600-699",2,"Medium and Large","Lynchburg","August",-10.8972368,0,0]
[null,null,null,null,null,null,null,null,"Steer","600-699",2,"Medium and Large","Lynchburg","September",-14.801878970000001,0,0]
[null,null,null,null,null,null,null,null,"Steer","600-699",2,"Medium and Large","Lynchburg","October",-19.50343415,0,0]
[null,null,null,null,null,null,null,null,"Steer","600-699",2,"Medium and Large","Lynchburg","November",-18.29156746,0,0]
[null,null,null,null,null,null,null,null,"Steer","600-699",2,"Medium and Large","Lynchburg","December",-15.09792569,0,0]
[null,null,null,null,null,null,null,null,"Steer","700-799",2,"Medium and Large","Lynchburg","January",-8.2854062240000008,0,0]
[null,null,null,null,null,null,null,null,"Steer","700-799",2,"Medium and Large","Lynchburg","February",-1.651007018,0,0]
[null,null,null,null,null,null,null,null,"Steer","700-799",2,"Medium and Large","Lynchburg","March",-7.4416261500000003,0,0]
[null,null,null,null,null,null,null,null,"Steer","700-799",2,"Medium and Large","Lynchburg","April",-3.3783448200000001,0,0]
[null,null,null,null,null,null,null,null,"Steer","700-799",2,"Medium and Large","Lynchburg","May",-15.53039719,0,0]
[null,null,null,null,null,null,null,null,"Steer","700-799",2,"Medium and Large","Lynchburg","June",-18.633832609999999,0,0]
[null,null,null,null,null,null,null,null,"Steer","700-799",2,"Medium and Large","Lynchburg","July",-19.728753609999998,0,0]
[null,null,null,null,null,null,null,null,"Steer","700-799",2,"Medium and Large","Lynchburg","August",-18.9496118,0,0]
[null,null,null,null,null,null,null,null,"Steer","700-799",2,"Medium and Large","Lynchburg","September",-24.028670630000001,0,0]
[null,null,null,null,null,null,null,null,"Steer","700-799",2,"Medium and Large","Lynchburg","October",-26.774746650000001,0,0]
[null,null,null,null,null,null,null,null,"Steer","700-799",2,"Medium and Large","Lynchburg","November",-24.362192459999999,0,0]
[null,null,null,null,null,null,null,null,"Steer","700-799",2,"Medium and Large","Lynchburg","December",-26.41042569,0,0]
[null,null,null,null,null,null,null,null,"Heifer","300-399",1,"Medium and Large","Lynchburg","January",-6.9548437239999998,0,0]
[null,null,null,null,null,null,null,null,"Heifer","300-399",1,"Medium and Large","Lynchburg","February",-0.173611184,0,0]
[null,null,null,null,null,null,null,null,"Heifer","300-399",1,"Medium and Large","Lynchburg","March",-5.8919317050000002,0,0]
[null,null,null,null,null,null,null,null,"Heifer","300-399",1,"Medium and Large","Lynchburg","April",-3.2090392649999999,0,0]
[null,null,null,null,null,null,null,null,"Heifer","300-399",1,"Medium and Large","Lynchburg","May",-12.228397190000001,0,0]
[null,null,null,null,null,null,null,null,"Heifer","300-399",1,"Medium and Large","Lynchburg","June",-17.053999279999999,0,0]
[null,null,null,null,null,null,null,null,"Heifer","300-399",1,"Medium and Large","Lynchburg","July",-23.768232770000001,0,0]
[null,null,null,null,null,null,null,null,"Heifer","300-399",1,"Medium and Large","Lynchburg","August",-16.747861799999999,0,0]
[null,null,null,null,null,null,null,null,"Heifer","300-399",1,"Medium and Large","Lynchburg","September",-17.387358129999999,{"$f":"IF(AND(U$7=$I1090,U$9=$J1090,U$10=$K1090,U$12=$L1090,U$15=$M1090,U$16=$N1090),$O1090,0)","v":0},{"$f":"IF(AND(V$7=$I1090,V$9=$J1090,V$10=$K1090,V$12=$L1090,V$15=$M1090,V$16=$N1090),$O1090,0)","v":0}]
[null,null,null,null,null,null,null,null,"Heifer","300-399",1,"Medium and Large","Lynchburg","October",-28.76860082,0,0]
[null,null,null,null,null,null,null,null,"Heifer","300-399",1,"Medium and Large","Lynchburg","November",-26.01642163,0,0]
[null,null,null,null,null,null,null,null,"Heifer","300-399",1,"Medium and Large","Lynchburg","December",-19.89459235,0,0]
[null,null,null,null,null,null,null,null,"Heifer","400-499",1,"Medium and Large","Lynchburg","January",-11.847010389999999,0,0]
[null,null,null,null,null,null,null,null,"Heifer","400-499",1,"Medium and Large","Lynchburg","February",-7.1338716010000001,0,0]
[null,null,null,null,null,null,null,null,"Heifer","400-499",1,"Medium and Large","Lynchburg","March",-10.11682059,0,0]
[null,null,null,null,null,null,null,null,"Heifer","400-499",1,"Medium and Large","Lynchburg","April",-7.7744559310000003,0,0]
[null,null,null,null,null,null,null,null,"Heifer","400-499",1,"Medium and Large","Lynchburg","May",-17.941230520000001,0,0]
[null,null,null,null,null,null,null,null,"Heifer","400-499",1,"Medium and Large","Lynchburg","June",-21.89502706,0,0]
[null,null,null,null,null,null,null,null,"Heifer","400-499",1,"Medium and Large","Lynchburg","July",-24.180253610000001,0,0]
[null,null,null,null,null,null,null,null,"Heifer","400-499",1,"Medium and Large","Lynchburg","August",-21.49219514,0,0]
[null,null,null,null,null,null,null,null,"Heifer","400-499",1,"Medium and Large","Lynchburg","September",-26.139899799999998,0,0]
[null,null,null,null,null,null,null,null,"Heifer","400-499",1,"Medium and Large","Lynchburg","October",-32.413382069999997,0,0]
[null,null,null,null,null,null,null,null,"Heifer","400-499",1,"Medium and Large","Lynchburg","November",-30.140786210000002,0,0]
[null,null,null,null,null,null,null,null,"Heifer","400-499",1,"Medium and Large","Lynchburg","December",-27.482682629999999,0,0]
[null,null,null,null,null,null,null,null,"Heifer","500-599",1,"Medium and Large","Lynchburg","January",-18.718802060000002,0,0]
[null,null,null,null,null,null,null,null,"Heifer","500-599",1,"Medium and Large","Lynchburg","February",-11.464444520000001,0,0]
[null,null,null,null,null,null,null,null,"Heifer","500-599",1,"Medium and Large","Lynchburg","March",-16.377987260000001,0,0]
[null,null,null,null,null,null,null,null,"Heifer","500-599",1,"Medium and Large","Lynchburg","April",-12.74695593,0,0]
[null,null,null,null,null,null,null,null,"Heifer","500-599",1,"Medium and Large","Lynchburg","May",-21.491369410000001,0,0]
[null,null,null,null,null,null,null,null,"Heifer","500-599",1,"Medium and Large","Lynchburg","June",-26.109603450000002,0,0]
[null,null,null,null,null,null,null,null,"Heifer","500-599",1,"Medium and Large","Lynchburg","July",-28.822711940000001,0,0]
[null,null,null,null,null,null,null,null,"Heifer","500-599",1,"Medium and Large","Lynchburg","August",-25.305903470000001,0,0]
[null,null,null,null,null,null,null,null,"Heifer","500-599",1,"Medium and Large","Lynchburg","September",-27.612941469999999,0,0]
[null,null,null,null,null,null,null,null,"Heifer","500-599",1,"Medium and Large","Lynchburg","October",-36.270267480000001,0,0]
[null,null,null,null,null,null,null,null,"Heifer","500-599",1,"Medium and Large","Lynchburg","November",-35.699015379999999,0,0]
[null,null,null,null,null,null,null,null,"Heifer","500-599",1,"Medium and Large","Lynchburg","December",-32.003828460000001,0,0]
[null,null,null,null,null,null,null,null,"Heifer","600-699",1,"Medium and Large","Lynchburg","January",-27.266218720000001,0,0]
[null,null,null,null,null,null,null,null,"Heifer","600-699",1,"Medium and Large","Lynchburg","February",-18.705277850000002,0,0]
[null,null,null,null,null,null,null,null,"Heifer","600-699",1,"Medium and Large","Lynchburg","March",-27.84690393,0,0]
[null,null,null,null,null,null,null,null,"Heifer","600-699",1,"Medium and Large","Lynchburg","April",-24.725428149999999,0,0]
[null,null,null,null,null,null,null,null,"Heifer","600-699",1,"Medium and Large","Lynchburg","May",-32.590174959999999,0,0]
[null,null,null,null,null,null,null,null,"Heifer","600-699",1,"Medium and Large","Lynchburg","June",-32.726471500000002,0,0]
[null,null,null,null,null,null,null,null,"Heifer","600-699",1,"Medium and Large","Lynchburg","July",-35.806371660000003,0,0]
[null,null,null,null,null,null,null,null,"Heifer","600-699",1,"Medium and Large","Lynchburg","August",-30.966757640000001,0,0]
[null,null,null,null,null,null,null,null,"Heifer","600-699",1,"Medium and Large","Lynchburg","September",-36.40830605,0,0]
[null,null,null,null,null,null,null,null,"Heifer","600-699",1,"Medium and Large","Lynchburg","October",-41.851954980000002,0,0]
[null,null,null,null,null,null,null,null,"Heifer","600-699",1,"Medium and Large","Lynchburg","November",-43.035817459999997,0,0]
[null,null,null,null,null,null,null,null,"Heifer","600-699",1,"Medium and Large","Lynchburg","December",-41.987925689999997,0,0]
[null,null,null,null,null,null,null,null,"Heifer","700-799",1,"Medium and Large","Lynchburg","January",-34.145677059999997,0,0]
[null,null,null,null,null,null,null,null,"Heifer","700-799",1,"Medium and Large","Lynchburg","February",-26.790277849999999,0,0]
[null,null,null,null,null,null,null,null,"Heifer","700-799",1,"Medium and Large","Lynchburg","March",-31.156903929999999,0,0]
[null,null,null,null,null,null,null,null,"Heifer","700-799",1,"Medium and Large","Lynchburg","April",-26.301122599999999,0,0]
[null,null,null,null,null,null,null,null,"Heifer","700-799",1,"Medium and Large","Lynchburg","May",-38.156147189999999,0,0]
[null,null,null,null,null,null,null,null,"Heifer","700-799",1,"Medium and Large","Lynchburg","June",-38.003165950000003,0,0]
[null,null,null,null,null,null,null,null,"Heifer","700-799",1,"Medium and Large","Lynchburg","July",-37.908649439999998,0,0]
[null,null,null,null,null,null,null,null,"Heifer","700-799",1,"Medium and Large","Lynchburg","August",-33.592361799999999,0,0]
[null,null,null,null,null,null,null,null,"Heifer","700-799",1,"Medium and Large","Lynchburg","September",-37.337108129999997,0,0]
[null,null,null,null,null,null,null,null,"Heifer","700-799",1,"Medium and Large","Lynchburg","October",-46.632663319999999,0,0]
[null,null,null,null,null,null,null,null,"Heifer","700-799",1,"Medium and Large","Lynchburg","November",-43.423171629999999,0,0]
[null,null,null,null,null,null,null,null,"Heifer","700-799",1,"Medium and Large","Lynchburg","December",-44.902509019999997,0,0]
[null,null,null,null,null,null,null,null,"Heifer","300-399",2,"Medium and Large","Lynchburg","January",6.8318437760000004,0,0]
[null,null,null,null,null,null,null,null,"Heifer","300-399",2,"Medium and Large","Lynchburg","February",12.22430548,0,0]
[null,null,null,null,null,null,null,null,"Heifer","300-399",2,"Medium and Large","Lynchburg","March",5.0029294059999998,0,0]
[null,null,null,null,null,null,null,null,"Heifer","300-399",2,"Medium and Large","Lynchburg","April",7.1541551800000001,0,0]
[null,null,null,null,null,null,null,null,"Heifer","300-399",2,"Medium and Large","Lynchburg","May",-2.8452305189999998,0,0]
[null,null,null,null,null,null,null,null,"Heifer","300-399",2,"Medium and Large","Lynchburg","June",-6.142207612,0,0]
[null,null,null,null,null,null,null,null,"Heifer","300-399",2,"Medium and Large","Lynchburg","July",-12.45458694,0,0]
[null,null,null,null,null,null,null,null,"Heifer","300-399",2,"Medium and Large","Lynchburg","August",-7.0381118049999998,0,0]
[null,null,null,null,null,null,null,null,"Heifer","300-399",2,"Medium and Large","Lynchburg","September",-7.3301289680000004,0,0]
[null,null,null,null,null,null,null,null,"Heifer","300-399",2,"Medium and Large","Lynchburg","October",-18.65337165,0,0]
[null,null,null,null,null,null,null,null,"Heifer","300-399",2,"Medium and Large","Lynchburg","November",-13.72837996,0,0]
[null,null,null,null,null,null,null,null,"Heifer","300-399",2,"Medium and Large","Lynchburg","December",-8.6670923519999992,0,0]
[null,null,null,null,null,null,null,null,"Heifer","400-499",2,"Medium and Large","Lynchburg","January",-4.8955937240000003,{"$f":"IF(AND(U$7=$I1154,U$9=$J1154,U$10=$K1154,U$12=$L1154,U$15=$M1154,U$16=$N1154),$O1154,0)","v":0},{"$f":"IF(AND(V$7=$I1154,V$9=$J1154,V$10=$K1154,V$12=$L1154,V$15=$M1154,V$16=$N1154),$O1154,0)","v":0}]
[null,null,null,null,null,null,null,null,"Heifer","400-499",2,"Medium and Large","Lynchburg","February",3.6739929820000001,0,0]
[null,null,null,null,null,null,null,null,"Heifer","400-499",2,"Medium and Large","Lynchburg","March",-2.6307372610000002,0,0]
[null,null,null,null,null,null,null,null,"Heifer","400-499",2,"Medium and Large","Lynchburg","April",-0.93376148699999995,0,0]
[null,null,null,null,null,null,null,null,"Heifer","400-499",2,"Medium and Large","Lynchburg","May",-11.60756385,0,0]
[null,null,null,null,null,null,null,null,"Heifer","400-499",2,"Medium and Large","Lynchburg","June",-14.00541595,0,0]
[null,null,null,null,null,null,null,null,"Heifer","400-499",2,"Medium and Large","Lynchburg","July",-17.314461940000001,0,0]
[null,null,null,null,null,null,null,null,"Heifer","400-499",2,"Medium and Large","Lynchburg","August",-12.751236799999999,0,0]
[null,null,null,null,null,null,null,null,"Heifer","400-499",2,"Medium and Large","Lynchburg","September",-17.754691470000001,0,0]
[null,null,null,null,null,null,null,null,"Heifer","400-499",2,"Medium and Large","Lynchburg","October",-27.11899665,0,0]
[null,null,null,null,null,null,null,null,"Heifer","400-499",2,"Medium and Large","Lynchburg","November",-23.005817459999999,0,0]
[null,null,null,null,null,null,null,null,"Heifer","400-499",2,"Medium and Large","Lynchburg","December",-17.76959235,0,0]
[null,null,null,null,null,null,null,null,"Heifer","500-599",2,"Medium and Large","Lynchburg","January",-10.93515622,0,0]
[null,null,null,null,null,null,null,null,"Heifer","500-599",2,"Medium and Large","Lynchburg","February",-3.723819518,0,0]
[null,null,null,null,null,null,null,null,"Heifer","500-599",2,"Medium and Large","Lynchburg","March",-9.9884039270000002,0,0]
[null,null,null,null,null,null,null,null,"Heifer","500-599",2,"Medium and Large","Lynchburg","April",-4.8654281539999999,0,0]
[null,null,null,null,null,null,null,null,"Heifer","500-599",2,"Medium and Large","Lynchburg","May",-18.683730520000001,0,0]
[null,null,null,null,null,null,null,null,"Heifer","500-599",2,"Medium and Large","Lynchburg","June",-21.508040950000002,0,0]
[null,null,null,null,null,null,null,null,"Heifer","500-599",2,"Medium and Large","Lynchburg","July",-24.77344111,0,0]
[null,null,null,null,null,null,null,null,"Heifer","500-599",2,"Medium and Large","Lynchburg","August",-19.890486800000001,0,0]
[null,null,null,null,null,null,null,null,"Heifer","500-599",2,"Medium and Large","Lynchburg","September",-22.79756647,0,0]
[null,null,null,null,null,null,null,null,"Heifer","500-599",2,"Medium and Large","Lynchburg","October",-32.264371650000001,0,0]
[null,null,null,null,null,null,null,null,"Heifer","500-599",2,"Medium and Large","Lynchburg","November",-29.418879960000002,0,0]
[null,null,null,null,null,null,null,null,"Heifer","500-599",2,"Medium and Large","Lynchburg","December",-26.710634020000001,0,0]
[null,null,null,null,null,null,null,null,"Heifer","600-699",2,"Medium and Large","Lynchburg","January",-18.912218719999998,0,0]
[null,null,null,null,null,null,null,null,"Heifer","600-699",2,"Medium and Large","Lynchburg","February",-10.354757019999999,0,0]
[null,null,null,null,null,null,null,null,"Heifer","600-699",2,"Medium and Large","Lynchburg","March",-20.808737260000001,0,0]
[null,null,null,null,null,null,null,null,"Heifer","600-699",2,"Medium and Large","Lynchburg","April",-15.74042815,0,0]
[null,null,null,null,null,null,null,null,"Heifer","600-699",2,"Medium and Large","Lynchburg","May",-24.60323052,0,0]
[null,null,null,null,null,null,null,null,"Heifer","600-699",2,"Medium and Large","Lynchburg","June",-26.18766595,0,0]
[null,null,null,null,null,null,null,null,"Heifer","600-699",2,"Medium and Large","Lynchburg","July",-31.020086939999999,0,0]
[null,null,null,null,null,null,null,null,"Heifer","600-699",2,"Medium and Large","Lynchburg","August",-24.1519868,0,0]
[null,null,null,null,null,null,null,null,"Heifer","600-699",2,"Medium and Large","Lynchburg","September",-28.948128969999999,0,0]
[null,null,null,null,null,null,null,null,"Heifer","600-699",2,"Medium and Large","Lynchburg","October",-36.885559149999999,0,0]
[null,null,null,null,null,null,null,null,"Heifer","600-699",2,"Medium and Large","Lynchburg","November",-34.237692459999998,0,0]
[null,null,null,null,null,null,null,null,"Heifer","600-699",2,"Medium and Large","Lynchburg","December",-30.541675690000002,0,0]
[null,null,null,null,null,null,null,null,"Heifer","700-799",2,"Medium and Large","Lynchburg","January",-27.519781219999999,0,0]
[null,null,null,null,null,null,null,null,"Heifer","700-799",2,"Medium and Large","Lynchburg","February",-20.706632020000001,0,0]
[null,null,null,null,null,null,null,null,"Heifer","700-799",2,"Medium and Large","Lynchburg","March",-27.198570589999999,0,0]
[null,null,null,null,null,null,null,null,"Heifer","700-799",2,"Medium and Large","Lynchburg","April",-25.73056704,0,0]
[null,null,null,null,null,null,null,null,"Heifer","700-799",2,"Medium and Large","Lynchburg","May",-35.783397190000002,0,0]
[null,null,null,null,null,null,null,null,"Heifer","700-799",2,"Medium and Large","Lynchburg","June",-35.67066595,0,0]
[null,null,null,null,null,null,null,null,"Heifer","700-799",2,"Medium and Large","Lynchburg","July",-38.524586939999999,0,0]
[null,null,null,null,null,null,null,null,"Heifer","700-799",2,"Medium and Large","Lynchburg","August",-33.217778469999999,0,0]
[null,null,null,null,null,null,null,null,"Heifer","700-799",2,"Medium and Large","Lynchburg","September",-34.506628970000001,0,0]
[null,null,null,null,null,null,null,null,"Heifer","700-799",2,"Medium and Large","Lynchburg","October",-42.403413319999999,0,0]
[null,null,null,null,null,null,null,null,"Heifer","700-799",2,"Medium and Large","Lynchburg","November",-39.753692460000003,0,0]
[null,null,null,null,null,null,null,null,"Heifer","700-799",2,"Medium and Large","Lynchburg","December",-36.28167569,0,0]
[null,null,null,null,null,null,null,null,"Steer","500-550",1,"Medium and Large","Abingdon (VQA)","January",22.305833333333329,{"$f":"IF(AND(U$7=$I1202,U$9=$J1202,U$10=$K1202,U$12=$L1202,U$15=$M1202,U$16=$N1202),$O1202,0)","v":0},{"$f":"IF(AND(V$7=$I1202,V$9=$J1202,V$10=$K1202,V$12=$L1202,V$15=$M1202,V$16=$N1202),$O1202,0)","v":0}]
[null,null,null,null,null,null,null,null,"Steer","500-550",1,"Medium and Large","Abingdon (VQA)","March",42.93,{"$f":"IF(AND(U$7=$I1203,U$9=$J1203,U$10=$K1203,U$12=$L1203,U$15=$M1203,U$16=$N1203),$O1203,0)","v":0},{"$f":"IF(AND(V$7=$I1203,V$9=$J1203,V$10=$K1203,V$12=$L1203,V$15=$M1203,V$16=$N1203),$O1203,0)","v":0}]
[null,null,null,null,null,null,null,null,"Steer","500-550",1,"Medium and Large","Abingdon (VQA)","July",13.536666666666671,0,0]
[null,null,null,null,null,null,null,null,"Steer","500-550",1,"Medium and Large","Abingdon (VQA)","August",17.459999999999997,0,0]
[null,null,null,null,null,null,null,null,"Steer","500-550",1,"Medium and Large","Abingdon (VQA)","November",9.6024999999999991,0,0]
[null,null,null,null,null,null,null,null,"Steer","500-550",1,"Medium and Large","Abingdon (VQA)","December",12.097142857142854,0,0]
[null,null,null,null,null,null,null,null,"Steer","551-599",1,"Medium and Large","Abingdon (VQA)","January",17.410999999999994,0,0]
[null,null,null,null,null,null,null,null,"Steer","551-599",1,"Medium and Large","Abingdon (VQA)","March",36.89,0,0]
[null,null,null,null,null,null,null,null,"Steer","551-599",1,"Medium and Large","Abingdon (VQA)","July",17.766666666666669,0,0]
[null,null,null,null,null,null,null,null,"Steer","551-599",1,"Medium and Large","Abingdon (VQA)","August",17.433333333333326,0,0]
[null,null,null,null,null,null,null,null,"Steer","551-599",1,"Medium and Large","Abingdon (VQA)","November",4.8275000000000006,0,0]
[null,null,null,null,null,null,null,null,"Steer","551-599",1,"Medium and Large","Abingdon (VQA)","December",6.1099999999999968,0,0]
[null,null,null,null,null,null,null,null,"Steer","600-650",1,"Medium and Large","Abingdon (VQA)","January",8.391,0,0]
[null,null,null,null,null,null,null,null,"Steer","600-650",1,"Medium and Large","Abingdon (VQA)","March",34.037777777777777,0,0]
[null,null,null,null,null,null,null,null,"Steer","600-650",1,"Medium and Large","Abingdon (VQA)","July",12.672000000000002,0,0]
[null,null,null,null,null,null,null,null,"Steer","600-650",1,"Medium and Large","Abingdon (VQA)","August",10.385714285714284,0,0]
[null,null,null,null,null,null,null,null,"Steer","600-650",1,"Medium and Large","Abingdon (VQA)","November",3.3299999999999983,0,0]
[null,null,null,null,null,null,null,null,"Steer","600-650",1,"Medium and Large","Abingdon (VQA)","December",1.0818181818181798,0,0]
[null,null,null,null,null,null,null,null,"Steer","651-699",1,"Medium and Large","Abingdon (VQA)","January",4.0092857142857099,0,0]
[null,null,null,null,null,null,null,null,"Steer","651-699",1,"Medium and Large","Abingdon (VQA)","March",27.495000000000005,0,0]
[null,null,null,null,null,null,null,null,"Steer","651-699",1,"Medium and Large","Abingdon (VQA)","July",8.9883333333333351,0,0]
[null,null,null,null,null,null,null,null,"Steer","651-699",1,"Medium and Large","Abingdon (VQA)","August",6.2737499999999962,0,0]
[null,null,null,null,null,null,null,null,"Steer","651-699",1,"Medium and Large","Abingdon (VQA)","November",-2.0910000000000024,0,0]
[null,null,null,null,null,null,null,null,"Steer","651-699",1,"Medium and Large","Abingdon (VQA)","December",-5.8333333333333384,0,0]
[null,null,null,null,null,null,null,null,"Steer","700-750",1,"Medium and Large","Abingdon (VQA)","January",-3.4430000000000036,0,0]
[null,null,null,null,null,null,null,null,"Steer","700-750",1,"Medium and Large","Abingdon (VQA)","March",12.962857142857146,0,0]
[null,null,null,null,null,null,null,null,"Steer","700-750",1,"Medium and Large","Abingdon (VQA)","July",0.69142857142857594,0,0]
[null,null,null,null,null,null,null,null,"Steer","700-750",1,"Medium and Large","Abingdon (VQA)","August",5.4649999999999981,0,0]
[null,null,null,null,null,null,null,null,"Steer","700-750",1,"Medium and Large","Abingdon (VQA)","November",-7.0763636363636389,0,0]
[null,null,null,null,null,null,null,null,"Steer","700-750",1,"Medium and Large","Abingdon (VQA)","December",-7.1650000000000036,0,0]
[null,null,null,null,null,null,null,null,"Steer","751-799",1,"Medium and Large","Abingdon (VQA)","January",-7.202500000000005,0,0]
[null,null,null,null,null,null,null,null,"Steer","751-799",1,"Medium and Large","Abingdon (VQA)","March",6.0516666666666694,0,0]
[null,null,null,null,null,null,null,null,"Steer","751-799",1,"Medium and Large","Abingdon (VQA)","July",-4.4099999999999966,0,0]
[null,null,null,null,null,null,null,null,"Steer","751-799",1,"Medium and Large","Abingdon (VQA)","August",0.85624999999999574,0,0]
[null,null,null,null,null,null,null,null,"Steer","751-799",1,"Medium and Large","Abingdon (VQA)","November",-9.6785714285714288,0,0]
[null,null,null,null,null,null,null,null,"Steer","751-799",1,"Medium and Large","Abingdon (VQA)","December",-10.490000000000004,0,0]
[null,null,null,null,null,null,null,null,"Steer","800-850",1,"Medium and Large","Abingdon (VQA)","January",-8.9114285714285746,0,0]
[null,null,null,null,null,null,null,null,"Steer","800-850",1,"Medium and Large","Abingdon (VQA)","March",-3.597999999999999,0,0]
[null,null,null,null,null,null,null,null,"Steer","800-850",1,"Medium and Large","Abingdon (VQA)","July",-8.4314285714285688,0,0]
[null,null,null,null,null,null,null,null,"Steer","800-850",1,"Medium and Large","Abingdon (VQA)","August",-4.3500000000000023,0,0]
[null,null,null,null,null,null,null,null,"Steer","800-850",1,"Medium and Large","Abingdon (VQA)","November",-11.946666666666667,0,0]
[null,null,null,null,null,null,null,null,"Steer","800-850",1,"Medium and Large","Abingdon (VQA)","December",-7.3250000000000028,0,0]
[null,null,null,null,null,null,null,null,"Steer","850-899",1,"Medium and Large","Abingdon (VQA)","January",null,0,0]
[null,null,null,null,null,null,null,null,"Steer","850-899",1,"Medium and Large","Abingdon (VQA)","March",null,0,0]
[null,null,null,null,null,null,null,null,"Steer","850-899",1,"Medium and Large","Abingdon (VQA)","July",null,0,0]
[null,null,null,null,null,null,null,null,"Steer","850-899",1,"Medium and Large","Abingdon (VQA)","August",-11.070000000000002,0,0]
[null,null,null,null,null,null,null,null,"Steer","850-899",1,"Medium and Large","Abingdon (VQA)","November",-13.090000000000003,0,0]
[null,null,null,null,null,null,null,null,"Steer","850-899",1,"Medium and Large","Abingdon (VQA)","December",null,0,0]
[null,null,null,null,null,null,null,null,"Heifer","451-499",1,"Medium and Large","Abingdon (VQA)","January",-1.5266666666666708,{"$f":"IF(AND(U$7=$I1250,U$9=$J1250,U$10=$K1250,U$12=$L1250,U$15=$M1250,U$16=$N1250),$O1250,0)","v":0},{"$f":"IF(AND(V$7=$I1250,V$9=$J1250,V$10=$K1250,V$12=$L1250,V$15=$M1250,V$16=$N1250),$O1250,0)","v":0}]
[null,null,null,null,null,null,null,null,"Heifer","451-499",1,"Medium and Large","Abingdon (VQA)","March",16.432499999999997,{"$f":"IF(AND(U$7=$I1251,U$9=$J1251,U$10=$K1251,U$12=$L1251,U$15=$M1251,U$16=$N1251),$O1251,0)","v":0},{"$f":"IF(AND(V$7=$I1251,V$9=$J1251,V$10=$K1251,V$12=$L1251,V$15=$M1251,V$16=$N1251),$O1251,0)","v":0}]
[null,null,null,null,null,null,null,null,"Heifer","451-499",1,"Medium and Large","Abingdon (VQA)","July",null,0,0]
[null,null,null,null,null,null,null,null,"Heifer","451-499",1,"Medium and Large","Abingdon (VQA)","August",null,0,0]
[null,null,null,null,null,null,null,null,"Heifer","451-499",1,"Medium and Large","Abingdon (VQA)","November",null,0,0]
[null,null,null,null,null,null,null,null,"Heifer","451-499",1,"Medium and Large","Abingdon (VQA)","December",null,0,0]
[null,null,null,null,null,null,null,null,"Heifer","500-550",1,"Medium and Large","Abingdon (VQA)","January",-2.8900000000000032,{"$f":"IF(AND(U$7=$I1256,U$9=$J1256,U$10=$K1256,U$12=$L1256,U$15=$M1256,U$16=$N1256),$O1256,0)","v":0},{"$f":"IF(AND(V$7=$I1256,V$9=$J1256,V$10=$K1256,V$12=$L1256,V$15=$M1256,V$16=$N1256),$O1256,0)","v":0}]
[null,null,null,null,null,null,null,null,"Heifer","500-550",1,"Medium and Large","Abingdon (VQA)","March",13.407500000000002,{"$f":"IF(AND(U$7=$I1257,U$9=$J1257,U$10=$K1257,U$12=$L1257,U$15=$M1257,U$16=$N1257),$O1257,0)","v":0},{"$f":"IF(AND(V$7=$I1257,V$9=$J1257,V$10=$K1257,V$12=$L1257,V$15=$M1257,V$16=$N1257),$O1257,0)","v":0}]
[null,null,null,null,null,null,null,null,"Heifer","500-550",1,"Medium and Large","Abingdon (VQA)","July",-8.727999999999998,0,0]
[null,null,null,null,null,null,null,null,"Heifer","500-550",1,"Medium and Large","Abingdon (VQA)","August",-1.9600000000000022,0,0]
[null,null,null,null,null,null,null,null,"Heifer","500-550",1,"Medium and Large","Abingdon (VQA)","November",-14.925714285714289,0,0]
[null,null,null,null,null,null,null,null,"Heifer","500-550",1,"Medium and Large","Abingdon (VQA)","December",-13.045714285714288,0,0]
[null,null,null,null,null,null,null,null,"Heifer","551-599",1,"Medium and Large","Abingdon (VQA)","January",-6.1500000000000012,0,0]
[null,null,null,null,null,null,null,null,"Heifer","551-599",1,"Medium and Large","Abingdon (VQA)","March",8.1442857142857168,0,0]
[null,null,null,null,null,null,null,null,"Heifer","551-599",1,"Medium and Large","Abingdon (VQA)","July",-7.3733333333333348,0,0]
[null,null,null,null,null,null,null,null,"Heifer","551-599",1,"Medium and Large","Abingdon (VQA)","August",-1.5166666666666704,0,0]
[null,null,null,null,null,null,null,null,"Heifer","551-599",1,"Medium and Large","Abingdon (VQA)","November",-13.724,0,0]
[null,null,null,null,null,null,null,null,"Heifer","551-599",1,"Medium and Large","Abingdon (VQA)","December",-15.141666666666671,0,0]
[null,null,null,null,null,null,null,null,"Heifer","600-650",1,"Medium and Large","Abingdon (VQA)","January",-11.495000000000005,0,0]
[null,null,null,null,null,null,null,null,"Heifer","600-650",1,"Medium and Large","Abingdon (VQA)","March",1.6737500000000018,0,0]
[null,null,null,null,null,null,null,null,"Heifer","600-650",1,"Medium and Large","Abingdon (VQA)","July",-5.9779999999999971,0,0]
[null,null,null,null,null,null,null,null,"Heifer","600-650",1,"Medium and Large","Abingdon (VQA)","August",-4.4633333333333347,0,0]
[null,null,null,null,null,null,null,null,"Heifer","600-650",1,"Medium and Large","Abingdon (VQA)","November",-9.2910000000000021,0,0]
[null,null,null,null,null,null,null,null,"Heifer","600-650",1,"Medium and Large","Abingdon (VQA)","December",-16.444444444444446,0,0]
[null,null,null,null,null,null,null,null,"Heifer","651-699",1,"Medium and Large","Abingdon (VQA)","January",-13.150000000000002,0,0]
[null,null,null,null,null,null,null,null,"Heifer","651-699",1,"Medium and Large","Abingdon (VQA)","March",-1.9974999999999987,0,0]
[null,null,null,null,null,null,null,null,"Heifer","651-699",1,"Medium and Large","Abingdon (VQA)","July",-12.327999999999998,0,0]
[null,null,null,null,null,null,null,null,"Heifer","651-699",1,"Medium and Large","Abingdon (VQA)","August",-10.530000000000001,0,0]
[null,null,null,null,null,null,null,null,"Heifer","651-699",1,"Medium and Large","Abingdon (VQA)","November",-12.215000000000003,0,0]
[null,null,null,null,null,null,null,null,"Heifer","651-699",1,"Medium and Large","Abingdon (VQA)","December",-18.390000000000004,0,0]
[null,null,null,null,null,null,null,null,"Heifer","700-750",1,"Medium and Large","Abingdon (VQA)","January",-14.277142857142861,0,0]
[null,null,null,null,null,null,null,null,"Heifer","700-750",1,"Medium and Large","Abingdon (VQA)","March",-9.7012499999999999,0,0]
[null,null,null,null,null,null,null,null,"Heifer","700-750",1,"Medium and Large","Abingdon (VQA)","July",-17.91571428571428,0,0]
[null,null,null,null,null,null,null,null,"Heifer","700-750",1,"Medium and Large","Abingdon (VQA)","August",-14.720000000000002,0,0]
[null,null,null,null,null,null,null,null,"Heifer","700-750",1,"Medium and Large","Abingdon (VQA)","November",-16.821428571428573,0,0]
[null,null,null,null,null,null,null,null,"Heifer","700-750",1,"Medium and Large","Abingdon (VQA)","December",-16.950000000000003,0,0]
[null,null,null,null,null,null,null,null,"Heifer","751-799",1,"Medium and Large","Abingdon (VQA)","January",-17.616666666666674,0,0]
[null,null,null,null,null,null,null,null,"Heifer","751-799",1,"Medium and Large","Abingdon (VQA)","March",null,0,0]
[null,null,null,null,null,null,null,null,"Heifer","751-799",1,"Medium and Large","Abingdon (VQA)","July",null,0,0]
[null,null,null,null,null,null,null,null,"Heifer","751-799",1,"Medium and Large","Abingdon (VQA)","August",-17.760000000000002,0,0]
[null,null,null,null,null,null,null,null,"Heifer","751-799",1,"Medium and Large","Abingdon (VQA)","November",-17.365000000000009,0,0]
[null,null,null,null,null,null,null,null,"Heifer","751-799",1,"Medium and Large","Abingdon (VQA)","December",-16.887500000000003,0,0]
[null,null,null,null,null,null,null,null,"Heifer","800-850",1,"Medium and Large","Abingdon (VQA)","January",-14.123333333333335,0,0]
[null,null,null,null,null,null,null,null,"Heifer","800-850",1,"Medium and Large","Abingdon (VQA)","March",-17.398,0,0]
[null,null,null,null,null,null,null,null,"Heifer","800-850",1,"Medium and Large","Abingdon (VQA)","July",-24.027999999999999,0,0]
[null,null,null,null,null,null,null,null,"Heifer","800-850",1,"Medium and Large","Abingdon (VQA)","August",-21.202857142857145,0,0]
[null,null,null,null,null,null,null,null,"Heifer","800-850",1,"Medium and Large","Abingdon (VQA)","November",-19.090000000000003,0,0]
[null,null,null,null,null,null,null,null,"Heifer","800-850",1,"Medium and Large","Abingdon (VQA)","December",null,0,0]
[null,null,null,null,null,null,null,null,"Heifer","1000+",1,"Medium and Large","Abingdon (VQA)","August",-30.56,0,0]

{"sheet":"Futures","index":2,"n_rows":11,"n_cols":5,"rows_kept":11,"cut":false,"hidden":true,"merged":[]}
["Contract","Last","Change","Open","Date"]
["CASH (GFY00)","254.09s",0.67,254.09,"2023-09-21"]
["SEP '23 (GFU23)","253.275s",-0.9,254.4,"2023-09-21"]
["OCT '23 (GFV23)","257.775s",-2.8,260.42500000000001,"2023-09-21"]
["NOV '23 (GFX23)","262.7s",-2.875,265.60000000000002,"2023-09-21"]
["JAN '24 (GFF24)","264.45s",-2.5499999999999998,266.47500000000002,"2023-09-21"]
["MAR '24 (GFH24)","266.75s",-2.4500000000000002,268.89999999999998,"2023-09-21"]
["APR '24 (GFJ24)","270.65s",-2.4750000000000001,272.77499999999998,"2023-09-21"]
["MAY '24 (GFK24)","273.275s",-2.4500000000000002,275.14999999999998,"2023-09-21"]
["AUG '24 (GFQ24)","280.625s",-2,282.2,"2023-09-21"]
["SEP '24 (GFU24)","230.875s",-0.2,231,"2023-09-18"]